Cogmind - Beta 15 @@@ ROGUE MODE // 2025.05.07 @ 20:49:53 Player: Dosh Result: Destroyed by Superfortress with Omega Cannon Performance ------------- Evolutions (8) 4000 Regions Visited (36) 7200 Robots Destroyed (529) 2645 Value Destroyed (32827) 32827 Prototype IDs (106) 2120 Alien Tech Used (2) 400 Bonus (22728) 22728 TOTAL SCORE: 71920 Bonus ------- High Alert Combat Kills 2595 Follower Combat Kills 13241 Entered Garrisons 2000 Used RIF Installer 5500 Scanned by Researcher 500 Friendly Fire -1108 Cogmind --------- Core Integrity 0/1450 Matter 300/300 Energy 98/100 System Corruption 28% Temperature Cool (0) Movement Core (50) Location -2/Protoforge Parts ------- > --- POWER (3) -------- (None) > --- PROPULSION (6) --- (None) > --- UTILITY (12) ----- (None) > --- WEAPON (2) ------- (None) > --- INVENTORY (5) ---- Micro Antimatter Reactor Experimental Biometal Leg Experimental Heat Sink Experimental Cooling System Weapon Mount Peak State ------------ > --- POWER ------------ Quantum Reactor Light Quantum Reactor Light Quantum Reactor > --- PROPULSION ------- Armored Heavy Treads Enhanced Armored Heavy Treads Advanced Heavy Siege Treads > --- UTILITY ---------- Advanced Cryofiber Web Experimental Heat Sink Huge Storage Unit Experimental Core Analyzer Quantum Capacitor Centrium Medium Armor Plating Experimental Hardlight Generator Advanced Remote Force Field Relay Coupler [C] Relay Coupler [Hunter] Relay Coupler [Proto] > --- WEAPON ----------- Enhanced Nova Cannon Advanced Remote Datajack > --- INVENTORY -------- Light Antimatter Reactor Micro Antimatter Reactor Quantum Reactor Advanced Heavy Siege Treads Experimental Biometal Leg Experimental Power Amplifier Experimental Heat Sink Advanced Cooling System Experimental Cooling System Experimental Cooling System Experimental Energy Well Experimental Targeting Computer Weapon Mount Graphene Brace Authchip [R/NC] Relay Coupler [Sentry] Relay Coupler [Hunter] Subatomic Replicator Long-range Proton Cannon Potential Cannon Mini Smartbomb Launcher Advanced Remote Datajack Advanced Remote Datajack [Rating: 205] Favorites ----------- Power Heavy Antimatter Reactor Engine Cooled Ion Engine Power Core Micro Nuclear Core Reactor Heavy Antimatter Reactor Propulsion Improved Heavy Treads Treads Improved Heavy Treads Leg Experimental VSS Leg Wheel Centrium Wheel Utility Huge Storage Unit Device Quantum Capacitor Storage Huge Storage Unit Processor Experimental Core Analyzer Hackware Relay Coupler [Sentry] Protection Hardened Medium Armor Plating Artifact Phase Redirector Weapon Enhanced Nova Cannon Energy Gun Heavy Laser Energy Cannon Enhanced Nova Cannon Ballistic Gun Autogun Launcher Missile Launcher Special Weapon Advanced Remote Datajack Slashing Weapon Katana Special Melee Weapon Improved Datajack Build | -11 -10 -10 -9 -9 -9 -8 -8 -8 -8 -8 -7 -7 -7 -7 -6 -6 -6 -6 -6 -6 -5 -5 -5 -5 -5 -5 -4 -4 -3 -3 -3 -2 -2 -2 -2 -2 ------- Run | Yrd Mat Min Mat Min Exi Min Mat Gar Mat Gar Fac Was Fac Gar Fac Was Fac Gar Fac Gar Fac Was Fac Gar Fac Gar Fac Gar Res Gar Tes Res Gar Res Qua Frg Slots Evolved 16 | . . . 2 . . . 2 . . . 2 . . . 2 . . . . . 2 . . . . . 2 . 2 . . 2 . . . . Power 2 | . . . . . . . . . . . . . . . . . . . . . 1 . . . . . . . . . . 1 . . . . Propulsion 4 | . . . 1 . . . . . . . 1 . . . . . . . . . . . . . . . 1 . 1 . . . . . . . Utility 10 | . . . 1 . . . 2 . . . 1 . . . 2 . . . . . 1 . . . . . 1 . 1 . . 1 . . . . Weapon . | . . . . . . . . . . . . . . . . . . . . . . . . . . . . . . . . . . . . . Parts Attached 368 | 6 4 . 31 2 3 . 29 1 8 11 5 11 4 7 6 . 2 23 7 24 5 13 11 11 11 15 14 19 5 8 9 16 5 11 12 19 Power 34 | 1 1 . 3 . . . 1 . . 2 1 1 . . . . . 2 . 2 2 1 . 1 1 2 2 . . . . 1 1 3 3 3 Engine 9 | 1 1 . 3 . . . 1 . . . 1 . . . . . . . . 1 1 . . . . . . . . . . . . . . . Core 2 | . . . . . . . . . . 2 . . . . . . . . . . . . . . . . . . . . . . . . . . Reactor 23 | . . . . . . . . . . . . 1 . . . . . 2 . 1 1 1 . 1 1 2 2 . . . . 1 1 3 3 3 Propulsion 72 | 2 . . 10 . 1 . 9 . 3 2 1 4 . 3 . . . 4 2 3 . 4 . 3 . 2 2 1 1 1 1 4 . 1 4 4 Treads 69 | 2 . . 10 . 1 . 9 . 3 2 1 4 . 3 . . . 4 2 2 . 4 . 3 . 2 2 1 1 1 1 4 . 1 4 2 Leg 2 | . . . . . . . . . . . . . . . . . . . . . . . . . . . . . . . . . . . . 2 Wheel 1 | . . . . . . . . . . . . . . . . . . . . 1 . . . . . . . . . . . . . . . . Hover . | . . . . . . . . . . . . . . . . . . . . . . . . . . . . . . . . . . . . . Flight . | . . . . . . . . . . . . . . . . . . . . . . . . . . . . . . . . . . . . . Utility 197 | 1 2 . 8 1 . . 10 1 3 6 2 5 3 3 6 . . 13 4 16 2 8 9 6 8 9 9 17 4 5 6 9 3 5 3 10 Device 52 | . . . . . . . 3 . 1 1 1 3 . . . . . 6 1 6 2 5 2 . 1 1 3 4 1 1 1 3 . 2 1 3 Storage 4 | 1 1 . . 1 . . . . . . . . . . . . . . 1 . . . . . . . . . . . . . . . . . Processor 7 | . . . 1 . . . . . . . 1 1 . . . . . . . . . . . . . . 1 . . . . 2 . . . 1 Hackware 94 | . . . . . . . 2 1 1 1 . 1 . 3 5 . . 6 1 6 . 1 6 6 7 6 5 12 3 4 3 4 3 2 1 4 Protection 39 | . 1 . 7 . . . 5 . 1 4 . . 3 . 1 . . 1 1 4 . 2 1 . . 2 . 1 . . 2 . . 1 . 2 Artifact 1 | . . . . . . . . . . . . . . . . . . . . . . . . . . . . . . . . . . . 1 . Weapon 65 | 2 1 . 10 1 2 . 9 . 2 1 1 1 1 1 . . 2 4 1 3 1 . 2 1 2 2 1 1 . 2 2 2 1 2 2 2 Energy Gun 3 | 1 . . . . . . . . . . . . . . . . . . . 2 . . . . . . . . . . . . . . . . Energy Cannon 22 | . . . 1 . . . 2 . . . 1 1 1 1 . . . 2 . . 1 . 1 1 1 1 . . . 1 2 1 1 1 1 1 Ballistic Gun 16 | 1 . . 7 . 2 . 5 . . . . . . . . . . 1 . . . . . . . . . . . . . . . . . . Ballistic Cannon . | . . . . . . . . . . . . . . . . . . . . . . . . . . . . . . . . . . . . . Launcher 6 | . 1 . 1 1 . . 1 . . . . . . . . . 1 1 . . . . . . . . . . . . . . . . . . Special Weapon 14 | . . . . . . . . . 1 1 . . . . . . 1 . . 1 . . 1 . 1 1 1 1 . 1 . 1 . 1 1 1 Impact Weapon . | . . . . . . . . . . . . . . . . . . . . . . . . . . . . . . . . . . . . . Slashing Weapon 1 | . . . . . . . 1 . . . . . . . . . . . . . . . . . . . . . . . . . . . . . Piercing Weapon . | . . . . . . . . . . . . . . . . . . . . . . . . . . . . . . . . . . . . . Special Melee Weapon 3 | . . . 1 . . . . . 1 . . . . . . . . . 1 . . . . . . . . . . . . . . . . . Unidentified Prototypes 26 | . . . 4 . . . 1 . . . . 1 . . . . 1 5 . . 1 . . . . . 5 . . 1 3 1 . . 2 1 Parts Lost 84 | . . . 6 . . . 4 . 3 8 . . . . . . . 2 5 6 1 . 1 2 1 1 1 3 1 . 2 4 3 3 1 26 Power 14 | . . . . . . . . . 1 2 . . . . . . . . . 2 . . . . 1 . . . . . . . 1 1 1 5 Propulsion 16 | . . . 2 . . . 1 . . 2 . . . . . . . . 2 1 . . . . . . . . . . . . 1 . . 7 Utility 43 | . . . 4 . . . 2 . 2 4 . . . . . . . 2 2 1 . . 1 1 . 1 1 2 1 . 2 4 1 1 . 11 Weapon 11 | . . . . . . . 1 . . . . . . . . . . . 1 2 1 . . 1 . . . 1 . . . . . 1 . 3 Highest Loss Streak 20 | . . . 2 . . . 2 . 1 4 . . . . . . . 1 3 4 1 . 1 1 1 1 1 2 1 . 2 1 3 2 1 20 To Critical Strikes . | . . . . . . . . . . . . . . . . . . . . . . . . . . . . . . . . . . . . . Average Backups 21 | . 9 13 18 19 21 23 23 23 23 22 22 23 22 22 21 20 22 21 21 22 23 22 21 21 22 22 22 22 20 23 22 21 21 22 21 20 Power 1 | . 1 1 1 1 1 1 . 1 . . . 1 2 2 2 2 2 1 1 1 . . 1 1 . 1 1 1 1 1 1 1 1 1 1 2 Propulsion 2 | . 1 3 2 4 4 5 5 5 6 5 3 2 2 2 2 2 2 2 1 . . . 1 2 2 2 2 2 1 1 1 1 1 1 1 1 Utility 12 | . 3 5 5 6 6 8 7 9 9 9 14 14 13 13 11 10 10 12 13 15 19 19 15 14 16 16 15 14 14 17 15 13 13 14 12 10 Weapon 4 | . 3 4 8 7 8 8 8 7 7 6 4 4 4 4 6 6 7 4 3 2 3 2 2 3 3 3 3 3 3 3 3 4 3 4 4 3 Tool/Special . | . . . . . . . . . . . . . . . . . . . . . . . . . . . . . . . . . . . . . Unused Backups 77 | . 2 . 6 3 . . 6 2 1 . . 6 . 5 1 1 1 2 1 4 1 1 . 2 . 5 1 3 . 9 . 2 3 2 . 7 Power 9 | . 1 . 1 . . . . . . . . 1 . . . . . . . . . . . . . 2 1 . . . . . 2 1 . . Propulsion 16 | . . . 2 . . . 4 . 1 . . 3 . . . . . . . . 1 . . 1 . . . 1 . . . 1 . 1 . 1 Utility 42 | . 1 . . 2 . . . 2 . . . 1 . 5 1 1 1 2 . 4 . 1 . 1 . 3 . 2 . 9 . . 1 . . 5 Weapon 7 | . . . 3 1 . . 2 . . . . 1 . . . . . . . . . . . . . . . . . . . . . . . . Tool/Special 3 | . . . . . . . . . . . . . . . . . . . 1 . . . . . . . . . . . . 1 . . . 1 Average Slot Usage (%) 87 | . 97 100 91 100 93 100 99 100 99 95 98 88 84 83 80 76 79 83 85 88 92 73 80 80 81 81 80 80 75 76 76 81 82 82 80 79 Engine 3 | . 13 14 10 11 11 11 9 9 9 3 6 2 . . . . . . . 2 6 . . . . . . . . . . . . . . . Reactor 6 | . . . . . . . . . . . . 4 7 7 6 6 6 6 6 3 3 9 10 10 11 11 10 10 9 9 9 13 13 13 12 12 Treads 18 | . 28 28 31 33 33 33 26 27 27 26 30 19 15 14 13 13 13 13 13 16 17 12 10 10 11 11 12 15 13 14 14 13 13 13 12 12 Device 12 | . . . . . . . 10 9 8 8 13 13 15 13 8 2 6 9 8 11 15 7 10 16 17 19 19 19 16 18 18 17 23 24 20 20 Storage 6 | . 14 14 11 11 11 11 9 9 9 9 7 7 7 7 6 6 6 6 6 6 5 5 5 5 5 5 5 5 4 4 4 4 4 4 4 3 Processor 1 | . . . 5 11 11 11 . . . . . 5 . . . . . . . . . . . . . . . . . . . 3 4 4 4 5 Hackware 14 | . . . . . . . 5 8 10 10 15 16 15 16 24 26 26 25 31 29 23 18 26 21 20 11 15 13 16 14 14 14 7 13 13 10 Protection 7 | . 12 14 10 11 11 11 19 18 16 13 6 1 6 7 6 6 5 7 4 4 5 4 2 1 2 8 5 4 4 4 4 5 6 . 4 3 Energy Cannon 4 | . . . . . . . . . . 5 8 13 15 9 6 6 8 10 12 5 2 . 4 4 5 5 4 5 4 3 3 4 4 4 4 3 Ballistic Gun 5 | . 14 14 21 13 15 22 17 17 16 7 . . . . . . . . . . . . . . . . . . . . . . . . . . Special Weapon 2 | . . . . . . . . . . 1 4 1 . 2 6 6 3 1 . . 4 5 5 4 4 5 5 4 4 4 4 4 3 4 4 3 Peak Build Rating 205 | 6 10 10 19 20 21 21 42 36 38 44 49 73 72 74 84 83 88 101 97 95 100 107 108 114 113 132 143 146 156 162 169 196 196 192 187 205 Average Rating 93 | 4 8 10 15 19 19 21 34 35 36 38 44 61 70 71 79 81 85 91 91 84 97 103 100 108 110 117 137 141 153 159 162 186 192 186 180 194 On Entrance 86 | . 6 10 10 19 16 21 21 36 36 38 43 44 70 72 74 81 83 88 97 92 84 98 107 105 104 108 132 141 145 153 162 169 196 192 171 187 Naked Turns 3 | . . . . . . . . . . . . . . . . . . . . . . . . . . . . . . . . . . . . 3 Heaviest Build 197 | 12 54 53 59 91 97 97 125 119 112 116 115 115 125 125 129 126 134 140 130 126 144 162 147 145 148 156 163 167 167 168 167 190 188 185 194 197 Greatest Support 235 | 40 40 40 60 60 60 60 68 68 68 66 89 140 140 145 145 145 145 150 150 150 125 145 140 150 150 155 185 185 230 230 230 230 230 235 235 225 Greatest Overweight (x) 2 | . 1 1 1 1 1 1 1 1 1 1 1 1 . . . . . . . 1 2 2 1 1 . 1 1 . . . . 1 . . 1 1 Average Overweight (x) . | . . 1 . . 1 1 1 1 1 1 1 . . . . . . . . . 1 . . . . . . . . . . . . . . . Largest Inventory Capacity 25 | 8 20 20 20 25 25 25 25 25 25 25 25 25 25 25 25 25 25 25 25 25 25 25 25 25 25 25 25 25 25 25 25 25 25 25 25 25 Average Capacity 24 | 6 16 20 20 20 25 25 25 25 25 25 25 25 25 25 25 25 25 25 25 25 25 25 25 25 25 25 25 25 25 25 25 25 25 25 25 24 Most Carried 25 | 2 13 13 20 21 24 25 25 25 25 25 25 25 25 25 25 24 25 25 25 25 25 25 25 25 25 25 25 25 25 25 25 25 25 25 25 25 Average Carried 23 | . 9 13 18 19 22 24 24 24 24 23 23 24 24 24 23 22 24 23 23 23 24 24 22 23 24 24 24 24 21 24 23 23 23 24 24 22 Final Capacity 25 | 8 20 20 20 25 25 25 25 25 25 25 25 25 25 25 25 25 25 25 25 25 25 25 25 25 25 25 25 25 25 25 25 25 25 25 25 5 Final Carried 25 | 1 13 13 20 22 24 25 23 25 24 23 25 25 25 25 24 22 25 25 23 25 24 20 23 25 24 25 24 25 24 25 25 23 25 24 25 5 Class Distribution -------------------- 56% | Botlord-Mutant 21% | Mutant 13% | Bothacker-Mutant 6% | Scavenger-Mutant Dominant Class ---------------- Mutant | -10/Materials Mutant | -10/Mines Scavenger-Mutant | -9/Materials Scavenger-Mutant | -9/Mines Scavenger-Mutant | -9/Exiles Commander-Mutant | -8/Mines Mutant | -8/Materials Mutant | -8/Garrison Mutant | -8/Materials Bothacker-Mutant | -8/Garrison Bothacker-Mutant | -7/Factory Bothacker-Mutant | -7/Waste Bothacker-Mutant | -7/Factory Bothacker-Mutant | -7/Garrison Botlord-Mutant | -6/Factory Bothacker-Mutant | -6/Waste Bothacker-Mutant | -6/Factory Botlord-Mutant | -6/Garrison Botlord-Mutant | -6/Factory Botlord-Mutant | -6/Garrison Botlord-Mutant | -5/Factory Botlord-Mutant | -5/Waste Botlord-Mutant | -5/Factory Botlord-Mutant | -5/Garrison Botlord-Mutant | -5/Factory Botlord-Mutant | -5/Garrison Botlord-Mutant | -4/Factory Botlord-Mutant | -4/Garrison Botlord-Mutant | -3/Research Botlord-Mutant | -3/Garrison Botlord-Mutant | -3/Testing Botlord-Mutant | -2/Research Botlord-Mutant | -2/Garrison Botlord-Mutant | -2/Research Botlord-Mutant | -2/Quarantine Botlord-Mutant | -2/Protoforge Resources | -11 -10 -10 -9 -9 -9 -8 -8 -8 -8 -8 -7 -7 -7 -7 -6 -6 -6 -6 -6 -6 -5 -5 -5 -5 -5 -5 -4 -4 -3 -3 -3 -2 -2 -2 -2 -2 ----------- Run | Yrd Mat Min Mat Min Exi Min Mat Gar Mat Gar Fac Was Fac Gar Fac Was Fac Gar Fac Gar Fac Was Fac Gar Fac Gar Fac Gar Res Gar Tes Res Gar Res Qua Frg Matter Collected 15766 | 237 233 . 1419 130 154 52 1511 261 945 772 104 150 75 260 135 45 93 748 454 460 105 188 616 638 385 454 619 464 155 345 644 717 518 374 409 897 Remotely . | . . . . . . . . . . . . . . . . . . . . . . . . . . . . . . . . . . . . . Salvage Created 28713 | . 677 . 1625 23 154 12 1711 417 1208 675 245 1687 134 1216 80 116 361 1500 1660 1227 40 1063 636 1172 643 326 925 810 9 673 637 1899 969 556 1152 2475 Parts 1350 | . 51 . 112 6 10 2 118 35 64 37 10 25 10 42 3 9 21 55 84 46 . 16 22 36 30 21 32 35 2 34 23 112 35 25 45 142 Haulers Intercepted 16 | . 2 . 5 . . . 5 . 1 . . . 1 . 1 . . 1 . . . . . . . . . . . . . . . . . . Recyclers Shooed 8 | . . . 1 . . 1 . . . . . . . . . . 2 . 2 . . . . . 2 . . . . . . . . . . . Parts Field Recycled . | . . . . . . . . . . . . . . . . . . . . . . . . . . . . . . . . . . . . . Retrieved Matter . | . . . . . . . . . . . . . . . . . . . . . . . . . . . . . . . . . . . . . Parts Self-Destructed . | . . . . . . . . . . . . . . . . . . . . . . . . . . . . . . . . . . . . . Prevented . | . . . . . . . . . . . . . . . . . . . . . . . . . . . . . . . . . . . . . Kills | -11 -10 -10 -9 -9 -9 -8 -8 -8 -8 -8 -7 -7 -7 -7 -6 -6 -6 -6 -6 -6 -5 -5 -5 -5 -5 -5 -4 -4 -3 -3 -3 -2 -2 -2 -2 -2 ------- Run | Yrd Mat Min Mat Min Exi Min Mat Gar Mat Gar Fac Was Fac Gar Fac Was Fac Gar Fac Gar Fac Was Fac Gar Fac Gar Fac Gar Res Gar Tes Res Gar Res Qua Frg Combat Hostiles Destroyed 419 | . 10 . 30 7 . 1 25 15 17 19 3 6 . 13 . . 4 19 30 26 1 4 12 13 9 5 14 12 . 12 13 20 16 8 15 40 Melee 4 | . . . . . . . . . . . . . . . . . . . . . . . . . . . . . . 1 . . . . . 3 Guns 98 | . 7 . 26 . . 1 23 8 17 9 . . . . . . . . . 2 . 4 1 . . . . . . . . . . . . . Cannons 205 | . . . . . . . . . . 2 3 4 . 5 . . 4 11 15 20 1 . 5 9 8 4 10 10 . 5 8 16 10 8 13 34 AOE 73 | . 3 . 4 7 . . 2 7 . 8 . . . 8 . . . 5 10 . . . . 3 . . 3 . . 4 4 . 3 . . 2 Classes Destroyed 29 | . 7 . 4 . . 1 3 1 . 1 . 1 1 1 . . 1 1 . . . . . 1 . . 1 . . . 1 1 . . . 3 Worker 27 | . 2 . 4 1 . . 6 . 2 . . . . . . . 1 . . . . . 1 . 1 . 1 . 1 . 1 4 . 1 . 1 Builder 13 | . 1 . 1 . . . 1 . 1 . 1 . . . . . . . 4 . . . . . 1 . . . . . . 1 . . . 2 Tunneler 5 | . . . . . . 1 2 . . . . . . . . . . . 1 . . . . . . . . . . . . 1 . . . . Hauler 16 | . 2 . 5 . . . 5 . 1 . . . 1 . 1 . . 1 . . . . . . . . . . . . . . . . . . Recycler 9 | . 1 . . . . . . . 1 . . . . . . . 1 . 2 . . . . . 1 . 2 . . . . 1 . . . . Mechanic 6 | . 1 . 2 . . . 1 . . . . . . . . . . . 1 . . . . . . . 1 . . . . . . . . . Operator 5 | . . . 1 . . . 1 . . . . . . . . . . . 3 . . . . . . . . . . . . . . . . . Drone 9 | . . . . . . . . . . . . . . . . . . . . . . . . . . . . . . . . . . . . 9 Watcher 23 | . 2 . 4 . . . 5 . 4 . 1 . . . . . . . 2 1 . . . 1 . . . . . . . 1 . . . 2 Swarmer 71 | . . . 8 7 . 1 2 4 . 6 . . . 3 . . . 4 10 8 . . 4 5 . . 2 5 . . . . 2 . . . Cutter 11 | . . . . . . . . . . . . . . . . . . . . . . . . 1 3 . . . . 4 . . 3 . . . Saboteur 3 | . . . . . . . . 3 . . . . . . . . . . . . . . . . . . . . . . . . . . . . Grunt 106 | . 10 . 12 . . . 9 5 9 6 . . . 5 . . . 8 6 4 . . . 4 2 1 . 2 . 1 3 3 7 . 5 4 Brawler 6 | . . . 1 . . . 1 . . . . . . . . . . . . 1 . . 1 . 1 . . . . . . . . . . 1 Duelist 9 | . . . . . . . . . . . . . . 1 . . . . 3 1 . . . 1 1 . . . . . . . . 1 1 . Protector 1 | . . . . . . . . . . . . . . . . . . 1 . . . . . . . . . . . . . . . . . . Researcher 1 | . . . . . . . . . . . . . . . . . . . . . . . . . . . . . . . . . . . . 1 Sentry 40 | . . . 9 . . . 8 3 6 4 2 . . . . . . . . 1 1 . 2 . . . 1 . . . . . 1 . 1 1 Demolisher 1 | . . . . . . . . . . . . . . 1 . . . . . . . . . . . . . . . . . . . . . . Specialist 5 | . . . . . . . 2 . . . . . . . . . 1 1 . 1 . . . . . . . . . . . . . . . . Hunter 43 | . . . . . . . 2 . 2 1 . . . . . . . 4 5 5 . . . 1 . 1 5 2 . 2 2 3 2 2 2 2 Programmer 74 | . . . . . . . . . . 2 1 . . 3 . . 2 . 5 4 . . 6 . 3 2 5 1 . 3 3 13 1 5 6 9 Heavy 3 | . . . . . . . 1 . . . . . . . . . . . . . . . . . . . . 1 . . . 1 . . . . Q-Series 4 | . . . . . . . . . . . . . . . . . . . . . . . . . . . . . . . . 1 . . . 3 Behemoth 8 | . . . . . . . . . . . . . . . . . 1 1 1 1 . . . 1 . 1 . 1 . 1 . . . . . . Compactor 10 | . . . . . . . . . . . . 6 . . . . . . . . . 4 . . . . . . . . . . . . . . Hotshot 8 | . . . . . . . . . . . . . . . . . . . . . . . . . . . . . . . . . . . . 8 Decapitator 1 | . . . . . . . . . . . . . . . . . . . . . . . . . . . . . . . . . . . . 1 Executioner 5 | . . . . . . . . . . . . . . . . . . . . . . . . . . . 1 . . 1 . . . . . 3 Alpha 7 1 | . . . . . . . . . . . . . . . . . . . . . . . . . . . . . . . . . . . . 1 Assembled 5 | . . . . . . . . . . . . . . . . . . . . . . . . . . . . . . . 5 . . . . . Surgeon 1 | . . . . . . . . . . . . . . . . . . 1 . . . . . . . . . . . . . . . . . . Martyr 4 | . . . . . . . . . . . . . 2 . . 2 . . . . . . . . . . . . . . . . . . . . Best Kill Streak 11 | . 5 . 6 4 . 1 3 4 4 11 2 1 1 9 1 . 2 5 9 5 1 2 4 5 3 2 6 2 1 4 5 4 7 3 3 6 Combat Bots Only 11 | . 2 . 4 4 . 1 3 4 4 11 1 1 . 9 . . 1 4 6 5 1 2 4 5 3 2 5 2 . 4 5 4 7 3 3 5 Max Kills in Single Turn 5 | . 3 . 5 2 . 1 1 4 1 2 1 1 1 3 1 1 1 4 5 1 1 1 1 3 1 1 2 1 1 3 2 1 2 1 1 2 Gunslinging . | . . . . . . . . . . . . . . . . . . . . . . . . . . . . . . . . . . . . . Exploded 4 | . 2 . 4 2 . . 1 4 . 2 . . . 3 . . . 3 3 . . . . 3 . . 2 . . 3 2 . 2 . . 1 Melee 1 | . . . . . . . . . . . . . . . . . . . . . . . . . . . . . . 1 . . . . . 1 Uniques/NPCs Destroyed . | . . . . . . . . . . . . . . . . . . . . . . . . . . . . . . . . . . . . . Combat | -11 -10 -10 -9 -9 -9 -8 -8 -8 -8 -8 -7 -7 -7 -7 -6 -6 -6 -6 -6 -6 -5 -5 -5 -5 -5 -5 -4 -4 -3 -3 -3 -2 -2 -2 -2 -2 -------- Run | Yrd Mat Min Mat Min Exi Min Mat Gar Mat Gar Fac Was Fac Gar Fac Was Fac Gar Fac Gar Fac Was Fac Gar Fac Gar Fac Gar Res Gar Tes Res Gar Res Qua Frg Hostile Shots Fired 2475 | . 29 . 122 15 . 5 158 32 77 135 48 . . 46 29 . 14 172 204 145 17 . 95 72 29 44 66 79 8 54 87 137 76 57 103 320 Missed 640 | . 7 . 37 6 . 2 39 7 17 31 13 . . 13 10 . 3 54 69 43 4 . 13 14 2 12 26 18 . 16 31 36 16 17 22 62 Hits 1835 | . 22 . 85 9 . 3 119 25 60 104 35 . . 33 19 . 11 118 135 102 13 . 82 58 27 32 40 61 8 38 56 101 60 40 81 258 Melee 37 | . . . 6 . . . . . . . . . . . . . . . 3 2 . . . 11 8 . . . . 3 4 . . . . . Projectile 1798 | . 22 . 79 9 . 3 119 25 60 104 35 . . 33 19 . 11 118 132 100 13 . 82 47 19 32 40 61 8 35 52 101 60 40 81 258 AOE 34 | . . . . . . . . . . . . . . 3 . . 3 . . . . . . 1 . . 2 . . 4 . . 4 . 15 2 Critical Strikes 110 | . . . 3 . . . 8 3 . 4 . . . . 1 . . 9 4 3 1 . 6 5 4 2 4 5 . 3 2 8 3 4 3 25 Actively Blocked 7 | . . . . . . . . . . . . . . . . . . . . . . . . . . . . . . . . . . . . 7 Part Disruptions 4 | . . . . . . . . . . . . . . . . . . . . . 2 . 1 . . . . . . . . . . . 1 . Damage Taken 35366 | . 394 . 1162 104 . 37 1669 296 978 1442 190 . . 619 358 11 397 2071 2782 1538 197 . 1670 1058 375 415 733 894 153 706 744 2142 1103 838 1127 9163 Core 3431 | . 77 . 71 35 . 9 195 32 163 138 22 . . 39 34 . 8 168 313 166 31 . 112 96 52 19 36 83 . 17 47 60 37 23 40 1308 Absorbed by Shields 9390 | . . . . . . . 437 116 294 136 85 . . . . . . 242 . 131 146 . 270 360 387 323 470 644 128 516 484 885 540 293 651 1852 Reduced by Siege Mode 2218 | . . . . . . . . . . . . . . . . . . 61 66 56 . . 126 64 23 . 21 19 4 5 10 244 36 35 142 1306 Ignored by Resistances 236 | . . . . . . . 236 . . . . . . . . . . . . . . . . . . . . . . . . . . . . . Regen/Repaired (Parts) 3989 | . 51 . 210 . . . 37 . 251 . 110 165 . . . 3 242 167 795 15 155 . 783 . 49 . 38 . . 153 347 26 . . . 392 Core Remaining (%) 67 | 100 . 69 . . . 71 . . . 4 . . . 91 . . . . . 18 . . . . . 69 . 89 . . 95 . . . . . Volleys Fired 2913 | . 40 . 133 6 11 4 146 25 80 68 17 56 7 41 15 19 34 126 101 118 16 177 105 192 84 78 86 133 23 85 98 156 112 56 88 377 Largest 2 | . 2 . 2 2 2 2 2 2 2 2 2 2 2 2 1 1 2 2 2 2 1 1 1 1 1 1 1 1 1 1 1 1 1 1 1 1 Hottest 210 | . 60 . 53 59 46 46 103 50 50 120 155 155 155 145 90 90 210 196 196 196 105 69 105 105 105 105 120 120 120 120 120 120 120 120 120 200 Shots Fired 3656 | . 79 . 267 7 24 8 290 48 159 118 19 106 14 59 15 19 39 174 159 177 16 178 109 191 83 77 86 133 23 86 98 160 115 57 94 369 Gun 1177 | . 76 . 266 1 24 8 286 46 159 100 . . . . . . . . . 24 1 170 16 . . . . . . . . . . . . . Cannon 1977 | . . . . . . . 2 . . 11 19 100 14 45 4 12 33 144 141 141 11 . 74 163 58 47 57 109 8 59 57 137 86 35 82 328 Launcher 47 | . 3 . 1 6 . . 2 2 . 6 . . . 4 . . . 5 6 . . . . 1 . . 4 . . 2 3 . 2 . . . Special 455 | . . . . . . . . . . 1 . 6 . 10 11 7 6 25 12 12 4 8 19 27 25 30 25 24 15 25 38 23 27 22 12 41 Kinetic 930 | . 40 . 266 1 24 8 286 46 159 100 . . . . . . . . . . . . . . . . . . . . . . . . . . Thermal 2111 | . . . . . . . 2 . . 11 19 100 14 45 4 12 27 135 141 159 12 170 90 163 58 47 57 109 8 59 57 95 77 35 77 328 Explosive 47 | . 3 . 1 6 . . 2 2 . 6 . . . 4 . . . 5 6 . . . . 1 . . 4 . . 2 3 . 2 . . . Electromagnetic 113 | . 36 . . . . . . . . . . . . . . . 6 9 . 6 . . . . . . . . . . . 42 9 . 5 . Robot Hit Streak 27 | . 7 . 11 3 26 1 18 9 17 9 14 14 19 11 14 9 4 27 23 17 7 12 10 23 8 6 16 11 12 9 13 16 14 15 25 27 Robot Miss Streak 6 | . 6 . 4 . . 1 4 2 4 3 1 2 1 2 2 3 3 6 3 4 1 3 4 4 2 3 6 5 3 2 4 4 2 3 3 4 Penetration Max 1 | . . . . . . . . . . . . . . . . . . . . . . . . . . . . . . . . . . . . 1 Secondary Targets 7 | . 1 . . . . . 4 . . 2 . . . . . . . . . . . . . . . . . . . . . . . . . . Max Gunslinging Chain 1 | . 1 . . . . . 1 . . 1 . . . . . . . . . . . . . . . . . . . . . . . . . . Capacitor 1299 | . . . . . . . . . . . . . . . . . . . . . . 38 90 163 58 47 57 109 8 59 57 137 86 35 82 273 Shots Hit Robots 2297 | . 38 . 165 2 23 4 180 25 111 67 14 86 11 52 9 13 19 101 101 87 9 134 67 133 54 31 59 64 16 43 62 101 71 38 66 241 Core Hits 891 | . 30 . 71 9 7 2 83 21 51 28 7 18 9 35 1 5 8 40 52 29 2 25 16 40 15 7 33 19 2 14 23 34 29 11 27 88 Critical Kills 31 | . . . . . . . . . . . . 2 . . . . . 5 4 . . . 3 2 2 1 1 2 . 2 1 2 1 . 2 1 Critical Parts Destroyed 4 | . . . 1 . . . . . 1 2 . . . . . . . . . . . . . . . . . . . . . . . . . . Critical Strikes 45 | . . . 1 . . . . . 1 2 . 2 . 2 . . . 5 4 1 . 7 3 2 2 1 1 2 . 2 1 2 1 . 2 1 Burn 7 | . . . . . . . . . . . . . . . . . . . . . . 7 . . . . . . . . . . . . . . Meltdown 31 | . . . . . . . . . . . . 2 . . . . . 5 4 . . . 3 2 2 1 1 2 . 2 1 2 1 . 2 1 Destroy 4 | . . . 1 . . . . . 1 2 . . . . . . . . . . . . . . . . . . . . . . . . . . Corrupt 1 | . . . . . . . . . . . . . . . . . . . . 1 . . . . . . . . . . . . . . . . Sever 2 | . . . . . . . . . . . . . . 2 . . . . . . . . . . . . . . . . . . . . . . Melee Attacks 71 | . . . 1 . . . 5 2 13 13 3 . . 33 . . . . 1 . . . . . . . . . . . . . . . . . Impact . | . . . . . . . . . . . . . . . . . . . . . . . . . . . . . . . . . . . . . Slashing 67 | . . . . . . . 5 2 11 13 3 . . 33 . . . . . . . . . . . . . . . . . . . . . . Piercing . | . . . . . . . . . . . . . . . . . . . . . . . . . . . . . . . . . . . . . Sneak Attacks 9 | . . . 1 . . . . . 6 . 1 . . . . . . . 1 . . . . . . . . . . . . . . . . . Combat Hostiles . | . . . . . . . . . . . . . . . . . . . . . . . . . . . . . . . . . . . . . Follow-up Attacks . | . . . . . . . . . . . . . . . . . . . . . . . . . . . . . . . . . . . . . Damage Inflicted 71544 | . 742 1 2788 649 373 88 3282 877 2013 1950 613 2243 320 2761 68 276 629 3645 5344 2773 154 2800 1884 3732 1243 444 3070 2093 221 1553 2417 3899 2795 1045 2163 10596 Guns 12809 | . 552 . 2549 . 373 70 2830 453 1762 1108 . . . . . . . . . 132 18 2800 162 . . . . . . . . . . . . . Cannons 45699 | . . . . . . . . . . 366 553 2243 302 484 68 276 613 2846 3788 2639 136 . 1710 3292 1139 444 1636 2031 210 1078 1693 3806 2224 1021 2152 8949 Explosions 10162 | . 185 . 198 596 . . 229 424 . 476 . . . 677 . . . 799 1548 . . . . 440 . . 1432 . . 437 654 . 571 . . 1496 Melee 1911 | . . . . . . . . . 251 . 60 . . 1600 . . . . . . . . . . . . . . . . . . . . . . Ramming 963 | . 5 1 41 53 . 18 223 . . . . . 18 . . . 16 . 8 2 . . 12 . 104 . 2 62 11 38 70 93 . 24 11 151 Kinetic 9422 | . 277 . 2549 . 373 70 2830 453 1762 1108 . . . . . . . . . . . . . . . . . . . . . . . . . . Thermal 48625 | . 123 . . . . . . . . 366 553 2243 302 484 68 276 436 2707 3788 2609 154 2800 1872 3292 1139 444 1636 2031 210 1078 1693 2850 2001 1021 2004 10445 Explosive 8497 | . 62 . 198 596 . . 229 424 . 476 . . . 677 . . . 753 1548 . . . . 440 . . 1432 . . 437 654 . 571 . . . Electromagnetic 2126 | . 275 . . . . . . . . . . . . . . . 177 185 . 162 . . . . . . . . . . . 956 223 . 148 . Impact . | . . . . . . . . . . . . . . . . . . . . . . . . . . . . . . . . . . . . . Slashing 1911 | . . . . . . . . . 251 . 60 . . 1600 . . . . . . . . . . . . . . . . . . . . . . Piercing . | . . . . . . . . . . . . . . . . . . . . . . . . . . . . . . . . . . . . . Highest Corruption 28 | . . . 6 6 6 6 1 1 5 8 . . . . . . 4 4 3 3 . 15 14 14 18 19 . 1 . 1 7 10 10 13 17 28 Average Corruption 8 | . . . 5 6 6 6 1 1 3 6 . . . . . . 2 2 1 2 . 10 9 14 14 18 . 1 . 1 5 5 10 11 16 21 Corruption Purged 26 | . . . . . . . . . . . . . . . . . . 4 . 7 . 14 . . . . . 1 . . . . . . . . Corruption Blocked . | . . . . . . . . . . . . . . . . . . . . . . . . . . . . . . . . . . . . . Effects 934 | . . . 6 16 36 29 21 4 52 38 . . . . . . 16 . 12 . . 32 63 76 74 68 . 2 . 2 32 56 41 43 88 127 Message Errors 234 | . . . 1 2 13 8 6 2 10 9 . . . . . . 5 . 5 . . 11 14 16 11 16 . 2 . . 7 15 16 7 30 28 Matter Fused 199 | . . . . 6 3 4 9 . 10 8 . . . . . . 4 . 2 . . 4 16 16 19 17 . . . . 9 19 5 10 14 24 Heat Flow Errors 110 | . . . 3 2 6 1 2 . 11 5 . . . . . . 1 . 2 . . 3 5 7 10 7 . . . 1 5 5 4 7 11 12 Energy Discharges 111 | . . . . 2 5 4 3 . 10 4 . . . . . . 2 . 1 . . 6 8 11 7 7 . . . . 2 7 7 4 12 9 Parts Rejected 7 | . . . . . . . . . . 1 . . . . . . . . . . . 2 . 1 1 . . . . . . 1 . . . 1 Parts Fused 16 | . . . . . 1 . . . 2 . . . . . . . . . . . . . 1 1 1 3 . . . . 3 . . . 2 2 Data Loss (minor) 101 | . . . . 3 1 8 . 1 3 3 . . . . . . 1 . 2 . . 3 6 7 9 10 . . . . 4 1 2 9 8 20 Data Loss (major) 43 | . . . 1 1 3 4 . 1 3 1 . . . . . . 1 . . . . . 5 2 7 3 . . . . . 1 2 3 1 4 Misfires 47 | . . . 1 . 3 . . . 2 3 . . . . . . 2 . . . . 1 5 4 2 1 . . . 1 1 5 4 1 6 5 Alerts 26 | . . . . . . . 1 . . 1 . . . . . . . . . . . 1 2 4 4 2 . . . . . 1 . 1 4 5 Misdirections 8 | . . . . . . . . . . . . . . . . . . . . . . 1 . 2 . . . . . . . . . 1 . 4 Weapon Failures 32 | . . . . . 1 . . . 1 3 . . . . . . . . . . . . 1 5 3 2 . . . . 1 1 1 . . 13 Overload Shots 2 | . . . . . . . . . . . . . . . . . 1 . . 1 . . . . . . . . . . . . . . . . Effects 1 | . . . . . . . . . . . . . . . . . . . . 1 . . . . . . . . . . . . . . . . Heat Surge 1 | . . . . . . . . . . . . . . . . . . . . 1 . . . . . . . . . . . . . . . . Overflow Damage 2031 | . 24 . . 36 . . 39 . 11 38 42 . . 37 . . 46 89 233 60 . . 84 106 25 . 56 38 . 59 156 160 54 99 69 470 Projectiles 1475 | . . . . . . . . . . . 42 . . 13 . . 46 76 114 60 . . 84 90 25 . 34 38 . 59 85 136 54 99 69 351 Explosions 473 | . 24 . . 36 . . 33 . . 38 . . . . . . . 13 119 . . . . 16 . . 22 . . . 53 . . . . 119 Melee 83 | . . . . . . . 6 . 11 . . . . 24 . . . . . . . . . . . . . . . . 18 24 . . . . Knockbacks 10 | . . . 1 . . . 2 . . . . . . . . . . . . . . . . . 3 . . 2 . . 1 1 . . . . Impact 9 | . . . 1 . . . 2 . . . . . . . . . . . . . . . . . 3 . . 1 . . 1 1 . . . . Kinetic . | . . . . . . . . . . . . . . . . . . . . . . . . . . . . . . . . . . . . . Secondary 1 | . . . . . . . . . . . . . . . . . . . . . . . . . . . . 1 . . . . . . . . Self-Inflicted Damage 592 | . 39 . . 43 . . . 56 . . . . . . . . . 68 93 . . . . . . . . . . 131 68 . 58 . . 36 Shots 13 | . 1 . . 1 . . . 1 . . . . . . . . . 2 2 . . . . . . . . . . 2 1 . 2 . . 1 Rammed 70 | . 1 1 8 3 . 2 12 . . . . . 2 . . . 1 1 3 1 . . . . 8 1 2 5 1 2 2 3 . 2 2 7 Targets Rammed 87 | . 1 1 9 4 . 3 18 . 1 . . . 2 . . . 1 1 3 1 . . 1 . 9 1 2 5 1 3 2 4 . 2 2 10 Kicked . | . . . . . . . . . . . . . . . . . . . . . . . . . . . . . . . . . . . . . Crushed 17 | . . . 1 1 . 1 6 . 1 . . . . . . . . . . . . . 1 . 1 . . . . 1 . 1 . . . 3 Highest Temperature 525 | . 111 . 184 252 278 278 264 171 329 249 110 . . 88 88 176 211 257 424 256 5 432 525 379 343 199 335 353 176 317 391 400 304 232 348 316 Average Temperature 82 | . 32 . 24 109 89 91 47 59 67 60 43 . . 31 36 86 72 42 80 63 3 130 158 116 91 71 97 92 103 145 138 153 103 95 123 99 Received Heat Transfer 5738 | . 153 . 423 . . 6 410 147 186 378 36 . . 132 30 . 39 548 417 161 13 . 191 167 8 133 23 61 12 40 102 858 422 11 20 611 Effects 21 | . . . . . . . 1 . . . . . . . . . . . 1 . . 4 5 1 1 . . . . . 1 5 . . 1 1 Shutdowns 2 | . . . . . . . . . . . . . . . . . . . 1 . . . . . 1 . . . . . . . . . . . Energy Bleed 4 | . . . . . . . 1 . . . . . . . . . . . . . . 2 . . . . . . . . . . . . . 1 Interference 4 | . . . . . . . . . . . . . . . . . . . . . . 1 . . . . . . . . . 3 . . . . Matter Decay 3 | . . . . . . . . . . . . . . . . . . . . . . . 1 1 . . . . . . . 1 . . . . Short Circuit 5 | . . . . . . . . . . . . . . . . . . . . . . 1 2 . . . . . . . 1 . . . 1 . Damage (minor) 1 | . . . . . . . . . . . . . . . . . . . . . . . . . . . . . . . . 1 . . . . Damage (major) 2 | . . . . . . . . . . . . . . . . . . . . . . . 2 . . . . . . . . . . . . . Siege Activations 52 | . . . . . . . . . . . . . . . . . . 4 2 3 . . 3 2 2 1 2 1 1 2 1 7 2 1 6 12 Total Turns 1138 | . . . . . . . . . . . . . . . . . . 189 44 86 . . 43 64 37 3 30 12 3 15 20 135 16 17 95 329 Longest Duration 127 | . . . . . . . . . . . . . . . . . . 127 23 33 . . 23 46 36 3 20 12 3 8 20 39 11 17 33 52 Martial Activations . | . . . . . . . . . . . . . . . . . . . . . . . . . . . . . . . . . . . . . Shielding Activations . | . . . . . . . . . . . . . . . . . . . . . . . . . . . . . . . . . . . . . Robots Disrupted . | . . . . . . . . . . . . . . . . . . . . . . . . . . . . . . . . . . . . . Combat Hostiles . | . . . . . . . . . . . . . . . . . . . . . . . . . . . . . . . . . . . . . Robots Corrupted 7 | . . . . . . . . . . . . . . . . . . . . 1 . . . . . . . . . . 1 3 2 . . . Combat Hostiles 5 | . . . . . . . . . . . . . . . . . . . . 1 . . . . . . . . . . . 2 2 . . . Parts Fried 26 | . . . . . . . 2 . . . . . . . . . 4 3 . 3 . . . . . . . . . . 2 7 4 . 1 . Impact Corruptions 6 | . . . . . . . 2 . . . . . . . . . . . . . . . . . 1 . . . . . 1 2 . . . . Robots Melted 40 | . . . . . . . . . . . . 2 . . . . . 5 6 3 . . 6 3 2 1 1 2 . 2 1 2 1 . 2 1 Combat Hostiles 33 | . . . . . . . . . . . . 2 . . . . . 2 5 3 . . 6 1 1 1 1 2 . 2 1 2 1 . 2 1 Parts Melted 131 | . . . . . . . . . 1 1 3 2 2 2 . . 1 19 20 11 . . 11 15 6 1 2 3 . 8 . 15 1 4 2 1 Heat Transferred 58539 | . 150 . . . . . . . . 800 1144 3852 509 641 74 296 444 3860 5990 4411 237 5957 2714 5360 1184 425 1294 1702 185 832 1369 2146 1702 777 1812 8672 Parts Sabotaged . | . . . . . . . . . . . . . . . . . . . . . . . . . . . . . . . . . . . . . Parts Stolen . | . . . . . . . . . . . . . . . . . . . . . . . . . . . . . . . . . . . . . Parts Stripped . | . . . . . . . . . . . . . . . . . . . . . . . . . . . . . . . . . . . . . Power Chain Reactions 2 | . 1 . . . . . . . . . . . . . . . . 1 . . . . . . . . . . . . . . . . . . Alert | -11 -10 -10 -9 -9 -9 -8 -8 -8 -8 -8 -7 -7 -7 -7 -6 -6 -6 -6 -6 -6 -5 -5 -5 -5 -5 -5 -4 -4 -3 -3 -3 -2 -2 -2 -2 -2 ------- Run | Yrd Mat Min Mat Min Exi Min Mat Gar Mat Gar Fac Was Fac Gar Fac Was Fac Gar Fac Gar Fac Was Fac Gar Fac Gar Fac Gar Res Gar Tes Res Gar Res Qua Frg Maximum Alert Level 4 | . . . 1 . . . 1 2 1 3 1 . . 3 2 . 2 3 2 4 4 2 . 3 3 2 2 3 2 4 3 2 3 2 . 3 Low Security (%) 48 | 100 100 100 43 100 . 100 90 . 80 33 57 100 100 21 18 100 41 7 59 3 . 36 100 14 13 24 30 15 79 17 . 64 . 28 100 24 Level 1 18 | . . . 56 . . . 9 23 19 4 42 . . 20 29 . 26 33 20 17 . 51 . 30 15 34 27 3 8 4 . 33 4 35 . 19 Level 2 20 | . . . . . . . . 76 . 47 . . . 10 52 . 31 27 19 22 . 11 . 38 69 41 41 48 12 43 52 2 13 36 . 39 Level 3 11 | . . . . . . . . . . 14 . . . 46 . . . 32 . 46 50 . . 17 2 . . 32 . 22 47 . 82 . . 15 Level 4 1 | . . . . . . . . . . . . . . . . . . . . 10 49 . . . . . . . . 12 . . . . . . Level 5 . | . . . . . . . . . . . . . . . . . . . . . . . . . . . . . . . . . . . . . High Security . | . . . . . . . . . . . . . . . . . . . . . . . . . . . . . . . . . . . . . Max Security . | . . . . . . . . . . . . . . . . . . . . . . . . . . . . . . . . . . . . . Peak Influence 1492 | . 111 17 320 192 . 70 233 657 319 716 375 20 14 1018 535 158 621 1015 551 1492 1307 448 100 950 715 571 490 812 456 1255 954 488 998 561 81 940 Initial 783 | . . 17 . 97 . . . 151 319 12 375 20 . . 534 158 . 154 532 154 783 448 56 . 498 25 299 63 456 45 705 400 354 561 . 15 Average 303 | . 43 5 216 107 . 7 76 463 80 398 188 . 1 538 369 41 237 547 164 746 1073 252 20 461 428 347 302 519 151 644 707 199 812 311 25 410 Influence Increases 25851 | . 441 . 1050 205 5 96 1010 506 608 844 123 . 51 1262 658 4 1053 1121 932 1638 915 . 412 1110 1021 796 1143 969 279 1480 1119 1204 934 328 520 2014 Destroy 0b10 Robot/C 11215 | . 200 . 600 140 . 60 580 300 340 460 60 . . 465 225 . 405 390 480 765 225 . 240 450 435 285 540 375 105 495 450 555 405 165 285 735 Destroy 0b10 Robot/NC 885 | . 45 . 85 5 5 5 110 . 45 . 10 . 15 36 16 . 20 32 56 8 8 . 20 32 48 . 40 4 12 . 40 68 . 12 . 108 Destroy Leader 1986 | . 48 . 188 20 . 10 190 10 120 40 32 . 6 40 68 . 116 48 132 56 74 . 62 32 86 48 102 32 18 32 22 140 40 34 40 100 Allied During Kill 4096 | . . . . . . 21 12 . . 32 . . 21 265 147 . 415 49 51 161 92 . 37 182 304 150 356 175 115 458 288 189 153 63 30 330 Successful Hack 400 | . 35 . 59 6 . . 11 14 18 . 19 . 9 . . . 51 8 29 17 . . 9 23 4 . 7 . . 8 16 30 6 . 21 . Select Force Hacks 129 | . 60 . . . . . . . . . . . . . . . 23 . 23 . . . . . . . . . 23 . . . . . . . Disable Machine 1068 | . . . . . . . 45 . . 15 . . . 12 156 . 12 24 72 48 120 . . . 12 . 12 60 . 12 60 48 . 12 96 252 Anti-Garrison Action 2971 | . . . . . . . . 150 . 250 . . . 379 . . . 453 . 452 . . . 265 . 265 . 227 . 189 113 . 228 . . . Destroy Structure 2717 | . 23 . 13 34 . . 32 32 10 47 2 . . 65 46 4 11 117 89 95 396 . 20 126 132 48 62 96 6 286 106 162 90 42 48 477 Partial Spotted 27 | . . . . . . . 15 . . . . . . . . . . . . 12 . . . . . . . . . . . . . . . . Lose Combat Pursuer 357 | . 30 . 105 . . . 15 . 75 . . . . . . . . . . 24 . . 24 . . . 24 . . . 24 12 12 . . 12 Influence Decreases 25097 | . 396 45 800 407 53 96 777 82 1246 147 781 58 51 244 1223 457 833 326 1726 367 1127 1200 492 160 1935 261 1624 247 1031 285 1662 1444 408 1326 491 1289 Entered New Map 6559 | . . 28 . 153 48 . . 82 338 7 341 38 . . 484 295 . 66 483 67 709 832 24 . 452 11 272 27 356 15 550 312 118 437 . 14 Time Decay 9439 | . 396 17 590 254 5 76 620 . 615 . 440 20 51 . 294 162 358 . 517 . 318 368 407 . 576 . 587 . 170 . 502 672 . 452 432 540 Lost Part 818 | . . . 60 . . . 40 . 20 80 . . . . . . . 20 50 60 10 . 8 20 10 10 10 30 10 . 20 40 30 20 10 260 Lost Ally 4114 | . . . . . . 20 60 . . 60 . . . 244 170 . 175 240 101 240 90 . 53 140 200 240 330 190 120 270 290 270 260 102 49 200 Purge Threat 4167 | . . . 150 . . . 57 . 273 . . . . . 275 . 300 . 575 . . . . . 697 . 425 . 375 . 300 150 . 315 . 275 Squads Dispatched 115 | . 3 . 2 . . . 5 . 1 . 2 . 1 . 7 . 13 . 10 . 7 . 6 . 7 . 7 . 3 . 10 12 . 5 5 9 Investigation 18 | . 3 . 1 . . . 2 . . . 1 . . . . . 1 . 3 . 1 . 1 . 1 . 2 . 1 . . 1 . . . . Extermination 36 | . . . . . . . . . . . 1 . 1 . 1 . 2 . 3 . 1 . 3 . 2 . 2 . 1 . . 6 . 3 5 5 Reinforcement 38 | . . . 1 . . . 2 . 1 . . . . . 4 . 3 . 3 . 3 . . . 3 . 2 . 1 . 5 5 . 2 . 3 Assault 12 | . . . . . . . . . . . . . . . 2 . 1 . 1 . 1 . 2 . 1 . . . . . 3 . . . . 1 Garrison 11 | . . . . . . . 1 . . . . . . . . . 6 . . . 1 . . . . . 1 . . . 2 . . . . . Intercept . | . . . . . . . . . . . . . . . . . . . . . . . . . . . . . . . . . . . . . Searches Triggered . | . . . . . . . . . . . . . . . . . . . . . . . . . . . . . . . . . . . . . Construction Impeded 6 | . . . . . . . . . . . . . . . . . . . 1 . 2 . . . . . 1 . . . . 1 . . . 1 Haulers Reinforced 1 | . . . . . . . . . . . . . . . . . . . . . . . . . . . . . . . . 1 . . . . Active Scanning Responses . | . . . . . . . . . . . . . . . . . . . . . . . . . . . . . . . . . . . . . Cargo Convoy Interrupts 2 | . . . . . . . . . . . . . . . . . 1 . . . . . . . . . 1 . . . . . . . . . Stealth | -11 -10 -10 -9 -9 -9 -8 -8 -8 -8 -8 -7 -7 -7 -7 -6 -6 -6 -6 -6 -6 -5 -5 -5 -5 -5 -5 -4 -4 -3 -3 -3 -2 -2 -2 -2 -2 --------- Run | Yrd Mat Min Mat Min Exi Min Mat Gar Mat Gar Fac Was Fac Gar Fac Was Fac Gar Fac Gar Fac Was Fac Gar Fac Gar Fac Gar Res Gar Tes Res Gar Res Qua Frg Distress Signals 44 | . 3 . 5 . . 1 3 . 4 . . . . . . . 1 1 2 1 . . 4 . 4 . 4 . . . 1 4 . 2 . 4 Communications Jammed 484 | . . . . . . . 6 . . . . . . 148 3 . . . 8 . . . 24 21 . . 94 . 1 . . 149 . 4 20 6 Distress Signals 474 | . . . . . . . . . . . . . . 148 3 . . . 5 . . . 24 21 . . 94 . 1 . . 149 . 4 20 5 Times Spotted 1048 | . 23 . 51 7 . 3 43 17 30 24 6 4 4 41 20 6 19 40 46 54 11 6 36 40 33 43 52 34 14 43 59 59 45 30 27 78 Peak Tracking Total 11 | . 4 . 6 4 . 3 5 4 3 8 2 2 2 8 3 2 4 9 10 5 3 4 8 7 4 7 11 4 4 4 7 4 9 9 3 8 Tactical Retreats 20 | . 1 . 4 . . . 1 . 4 . . . . . . . . . . 2 . . 2 . . . 2 . . . 1 1 1 . . 1 Traps | -11 -10 -10 -9 -9 -9 -8 -8 -8 -8 -8 -7 -7 -7 -7 -6 -6 -6 -6 -6 -6 -5 -5 -5 -5 -5 -5 -4 -4 -3 -3 -3 -2 -2 -2 -2 -2 ------- Run | Yrd Mat Min Mat Min Exi Min Mat Gar Mat Gar Fac Was Fac Gar Fac Was Fac Gar Fac Gar Fac Was Fac Gar Fac Gar Fac Gar Res Gar Tes Res Gar Res Qua Frg Traps Triggered 61 | . 3 . 1 . . . . 1 2 2 2 . 1 5 1 . . 2 3 4 1 . 1 1 . 7 2 3 . 3 3 4 3 4 1 1 Indirectly . | . . . . . . . . . . . . . . . . . . . . . . . . . . . . . . . . . . . . . Trap Hack Attempts 25 | . . . 21 . . . . . 4 . . . . . . . . . . . . . . . . . . . . . . . . . . . Triggered . | . . . . . . . . . . . . . . . . . . . . . . . . . . . . . . . . . . . . . Disarmed 1 | . . . 1 . . . . . . . . . . . . . . . . . . . . . . . . . . . . . . . . . Reprogrammed 1 | . . . . . . . . . 1 . . . . . . . . . . . . . . . . . . . . . . . . . . . Reused . | . . . . . . . . . . . . . . . . . . . . . . . . . . . . . . . . . . . . . Traps Extracted . | . . . . . . . . . . . . . . . . . . . . . . . . . . . . . . . . . . . . . Installed . | . . . . . . . . . . . . . . . . . . . . . . . . . . . . . . . . . . . . . Triggered . | . . . . . . . . . . . . . . . . . . . . . . . . . . . . . . . . . . . . . Machines | -11 -10 -10 -9 -9 -9 -8 -8 -8 -8 -8 -7 -7 -7 -7 -6 -6 -6 -6 -6 -6 -5 -5 -5 -5 -5 -5 -4 -4 -3 -3 -3 -2 -2 -2 -2 -2 ---------- Run | Yrd Mat Min Mat Min Exi Min Mat Gar Mat Gar Fac Was Fac Gar Fac Was Fac Gar Fac Gar Fac Was Fac Gar Fac Gar Fac Gar Res Gar Tes Res Gar Res Qua Frg Machines Disabled 140 | . . . . . . . 3 3 . 3 . . . 9 13 . 1 9 6 8 10 . . 7 1 4 1 9 . 5 6 4 5 1 8 24 Max in Single Turn 4 | . . . . . . . 1 1 . 1 . . . 1 . . . 1 2 1 . . . 1 . 1 . 1 . 1 1 1 1 1 1 4 Garrison Access 10 | . . . . . . . . . . . 1 . . . 1 . 1 . . . 1 . 1 . . . 1 . . . 1 2 . . 1 . Garrison Relay 41 | . . . . . . . . 2 . 2 . . . 8 . . . 6 . 4 . . . 4 . 4 . 4 . 3 . . 4 . . . Machines Repaired . | . . . . . . . . . . . . . . . . . . . . . . . . . . . . . . . . . . . . . Machines Dismantled . | . . . . . . . . . . . . . . . . . . . . . . . . . . . . . . . . . . . . . Machines Sabotaged . | . . . . . . . . . . . . . . . . . . . . . . . . . . . . . . . . . . . . . Overloaded Fab Kills . | . . . . . . . . . . . . . . . . . . . . . . . . . . . . . . . . . . . . . Hacking | -11 -10 -10 -9 -9 -9 -8 -8 -8 -8 -8 -7 -7 -7 -7 -6 -6 -6 -6 -6 -6 -5 -5 -5 -5 -5 -5 -4 -4 -3 -3 -3 -2 -2 -2 -2 -2 --------- Run | Yrd Mat Min Mat Min Exi Min Mat Gar Mat Gar Fac Was Fac Gar Fac Was Fac Gar Fac Gar Fac Was Fac Gar Fac Gar Fac Gar Res Gar Tes Res Gar Res Qua Frg Machines Accessed 163 | . 11 . 9 2 2 . 12 2 10 2 5 . 3 2 . . 10 3 11 2 4 . 6 3 9 3 8 3 4 1 8 7 3 5 9 4 Terminals 108 | . 8 . 7 1 . . 9 2 7 2 2 . 2 2 . . 5 3 6 2 2 . 1 3 6 3 4 3 2 1 7 3 3 4 6 2 Fabricators 6 | . . . . . . . . . . . 1 . . . . . 1 . 1 . 1 . 1 . . . . . . . . . . . . 1 Repair Stations 23 | . 1 . 2 . . . 1 . 2 . 1 . . . . . 2 . 2 . . . 2 . 1 . 2 . 1 . 1 1 . 1 2 1 Recycling Units 2 | . 2 . . . . . . . . . . . . . . . . . . . . . . . . . . . . . . . . . . . Scanalyzers 2 | . . . . . . . 1 . . . . . . . . . . . 1 . . . . . . . . . . . . . . . . . Garrison Access 19 | . . . . . . . 1 . 1 . 1 . 1 . . . 2 . 1 . 1 . 2 . 2 . 2 . 1 . . 3 . . 1 . Total Hacks 453 | . 21 . 31 4 2 . 53 5 35 6 24 . 10 4 . . 24 8 37 5 9 . 29 8 26 9 18 4 8 1 19 13 8 10 13 9 Successful 219 | . 13 . 17 2 2 . 25 2 19 1 14 . 5 2 . . 17 2 22 3 4 . 20 3 10 . 8 2 3 1 5 7 2 1 4 3 Failed 233 | . 8 . 14 1 . . 28 3 16 5 10 . 5 2 . . 7 6 15 2 5 . 9 5 16 9 10 2 5 . 14 6 6 9 9 6 Catastrophic 44 | . 2 . 1 . . . 2 1 2 2 . . . 1 . . 1 2 1 . 1 . 1 1 2 2 3 1 1 . 4 2 3 2 3 3 Database Lockouts 1 | . . . . 1 . . . . . . . . . . . . . . . . . . . . . . . . . . . . . . . . Manual 209 | . 15 . 18 4 1 . 29 . 25 1 4 . 1 . . . 11 1 18 3 1 . 5 1 19 . 11 . 4 . 15 6 . 10 4 2 Terminals 292 | . 17 . 23 3 . . 40 5 28 6 8 . 8 4 . . 16 8 18 5 4 . 1 8 18 9 7 4 4 1 16 5 8 8 7 3 Fabricators 17 | . . . . . . . . . . . 5 . . . . . 1 . 3 . 3 . 3 . . . . . . . . . . . . 2 Repair Stations 82 | . 2 . 8 . . . 4 . 6 . 10 . . . . . 3 . 7 . . . 20 . 2 . 5 . 1 . 3 1 . 2 4 4 Recycling Units 2 | . 2 . . . . . . . . . . . . . . . . . . . . . . . . . . . . . . . . . . . Scanalyzers 13 | . . . . . . . 8 . . . . . . . . . . . 5 . . . . . . . . . . . . . . . . . Garrison Access 44 | . . . . . . . 1 . 1 . 1 . 2 . . . 4 . 4 . 2 . 5 . 6 . 6 . 3 . . 7 . . 2 . Terminal Hacks 61 | . 2 . 4 2 2 . 7 2 4 1 2 . 2 2 . . 5 2 2 3 . . . 3 4 . 2 2 . 1 3 1 2 1 . . Record 1 | . . . . . 1 . . . . . . . . . . . . . . . . . . . . . . . . . . . . . . . Robot Schematic 1 | . 1 . . . . . . . . . . . . . . . . . . . . . . . . . . . . . . . . . . . Robot Analysis 2 | . . . 1 1 . . . . . . . . . . . . . . . . . . . . . . . . . . . . . . . . Prototype ID Bank 4 | . . . 1 . . . 2 . . . 1 . . . . . . . . . . . . . . . . . . . . . . . . . Open Door 6 | . . . . 1 . . . . . . . . . 1 . . . 1 . . . . . 1 . . . 1 . . . . 1 . . . Emergency Access Points 7 | . . . . . . . . . . . . . . 1 . . . 1 . 1 . . . 1 . . . 1 . 1 . . 1 . . . Machine Index 1 | . . . . . . . . . . . . . . . . . 1 . . . . . . . . . . . . . . . . . . . Terminal Index 3 | . 1 . . . . . . . 1 . . . 1 . . . . . . . . . . . . . . . . . . . . . . . Garrison Index 2 | . . . . . . . . . . . . . . . . . 1 . . . . . . . . . 1 . . . . . . . . . Alert Level 3 | . . . 1 . . . 2 . . . . . . . . . . . . . . . . . . . . . . . . . . . . . Unreport Threat 13 | . . . 1 . . . 1 . 1 . . . . . . . 1 . 2 . . . . . 3 . 1 . . . 2 . . 1 . . Locate Traps 7 | . . . . . . . 1 . 1 . 1 . 1 . . . 2 . . . . . . . . . . . . . 1 . . . . . Hauler Manifests 2 | . . . . . . . 1 . 1 . . . . . . . . . . . . . . . . . . . . . . . . . . . Zone Layout 2 | . . . . . . . . . . . . . . . . . . . . . . . . . 1 . . . . . . 1 . . . . Garrison Registry 2 | . . . . . . . . 1 . . . . . . . . . . . 1 . . . . . . . . . . . . . . . . Patrol Navigation 4 | . . . . . . . . 1 . 1 . . . . . . . . . 1 . . . 1 . . . . . . . . . . . . Proto ID Catalog 1 | . . . . . 1 . . . . . . . . . . . . . . . . . . . . . . . . . . . . . . . Fabricator Hacks 12 | . . . . . . . . . . . 2 . . . . . 1 . 3 . 2 . 2 . . . . . . . . . . . . 2 Load Schematic 5 | . . . . . . . . . . . 1 . . . . . . . 1 . 1 . 1 . . . . . . . . . . . . 1 Build 7 | . . . . . . . . . . . 1 . . . . . 1 . 2 . 1 . 1 . . . . . . . . . . . . 1 Repair Station Hacks 47 | . 2 . 6 . . . 3 . 4 . 7 . . . . . 2 . 3 . . . 15 . . . 2 . . . 1 . . . 1 1 Scan Component 27 | . 1 . 3 . . . 2 . 2 . 4 . . . . . 1 . 2 . . . 8 . . . 1 . . . 1 . . . 1 1 Repair 20 | . 1 . 3 . . . 1 . 2 . 3 . . . . . 1 . 1 . . . 7 . . . 1 . . . . . . . . . Recycling Unit Hacks . | . . . . . . . . . . . . . . . . . . . . . . . . . . . . . . . . . . . . . Scanalyzer 11 | . . . . . . . 6 . . . . . . . . . . . 5 . . . . . . . . . . . . . . . . . Insert Component 6 | . . . . . . . 3 . . . . . . . . . . . 3 . . . . . . . . . . . . . . . . . Analyze 5 | . . . . . . . 3 . . . . . . . . . . . 2 . . . . . . . . . . . . . . . . . Garrison Access Hacks 27 | . . . . . . . 1 . 1 . 1 . 2 . . . 3 . 2 . 2 . 1 . 2 . 4 . 2 . . 5 . . 1 . Unlock Access 11 | . . . . . . . 1 . 1 . . . 1 . . . 1 . 1 . . . 1 . 2 . 1 . 1 . . 1 . . . . Seal Access 7 | . . . . . . . . . . . 1 . . . . . 1 . . . 1 . . . . . 1 . . . . 2 . . 1 . Coupler Status 9 | . . . . . . . . . . . . . 1 . . . 1 . 1 . 1 . . . . . 2 . 1 . . 2 . . . . Unauthorized Hacks 61 | . 9 . 7 . . . 8 . 10 . 2 . 1 . . . 6 . 7 . . . 2 . 4 . . . 1 . 1 1 . . 2 . Terminals 48 | . 7 . 7 . . . 8 . 10 . 2 . 1 . . . 4 . 4 . . . . . 3 . . . . . 1 . . . 1 . Track 4 | . . . . . . . . . 1 . 1 . . . . . . . 1 . . . . . 1 . . . . . . . . . . . Assimilate 1 | . . . . . . . . . . . . . . . . . . . 1 . . . . . . . . . . . . . . . . . Botnet 9 | . . . 1 . . . 2 . 3 . . . . . . . 1 . 1 . . . . . 1 . . . . . . . . . . . Disrupt 1 | . . . . . . . . . . . . . . . . . . . 1 . . . . . . . . . . . . . . . . . Operators 5 | . . . . . . . . . 1 . . . 1 . . . . . . . . . . . 1 . . . . . 1 . . . 1 . Skim 28 | . 7 . 6 . . . 6 . 5 . 1 . . . . . 3 . . . . . . . . . . . . . . . . . . . Fabricators 1 | . . . . . . . . . . . . . . . . . . . . . . . 1 . . . . . . . . . . . . . Liberate 1 | . . . . . . . . . . . . . . . . . . . . . . . 1 . . . . . . . . . . . . . Repair Stations 3 | . . . . . . . . . . . . . . . . . 1 . 1 . . . . . . . . . . . . . . . 1 . Mechanics 3 | . . . . . . . . . . . . . . . . . 1 . 1 . . . . . . . . . . . . . . . 1 . Recycling Units 2 | . 2 . . . . . . . . . . . . . . . . . . . . . . . . . . . . . . . . . . . Tunnel 2 | . 2 . . . . . . . . . . . . . . . . . . . . . . . . . . . . . . . . . . . Scanalyzers . | . . . . . . . . . . . . . . . . . . . . . . . . . . . . . . . . . . . . . Garrison Access 7 | . . . . . . . . . . . . . . . . . 1 . 2 . . . 1 . 1 . . . 1 . . 1 . . . . Restock 4 | . . . . . . . . . . . . . . . . . . . 1 . . . 1 . 1 . . . . . . 1 . . . . Eject 3 | . . . . . . . . . . . . . . . . . 1 . 1 . . . . . . . . . 1 . . . . . . . Data Cores Recovered 3 | . . . . . . . . . . . . . . . . . . . . . . . . . 1 . . . 1 . 1 . . . . . Used 3 | . . . . . . . . . . . . . . . . . . . . . . . . . 1 . . . 1 . 1 . . . . . Hacking Detections 136 | . 7 . 7 1 . . 11 1 8 2 4 . 3 . . . 7 3 9 2 4 . 4 2 9 3 7 3 3 1 8 7 3 5 9 3 Full Trace Events 20 | . 1 . 1 . . . 3 1 . 1 1 . . . . . . . 2 . 1 . 1 1 1 1 2 . . . . 1 2 . . . Feedback Events 1 | . . . . . . . 1 . . . . . . . . . . . . . . . . . . . . . . . . . . . . . Corruption 1 | . . . . . . . 1 . . . . . . . . . . . . . . . . . . . . . . . . . . . . . Feedback Blocked . | . . . . . . . . . . . . . . . . . . . . . . . . . . . . . . . . . . . . . Robot Schematics Acquired 3 | . 1 . . . . . . . . . . . . . . . . . . . . . . . . . . . . . 2 . . . . . Robots Built 7 | . . . . . . . . . . . . . . . . . . . 4 . 1 . 1 . . . . . . . . . . . . 1 Authchips 2 | . . . . . . . . . . . . . . . . . . . . . . . 1 . . . . . . . . . . . . 1 Time 380 | . . . . . . . . . . . 40 . . . . . . . 233 . 40 . 40 . . . . . . . . . . . . 27 Total Robot Build Rating 19 | . . . . . . . . . . . . . . . . . . . 16 . 1 . 1 . . . . . . . . . . . . 1 Part Schematics Acquired 25 | . . . . . . . 3 . . . . . . . . . . . 2 . . . . . . . . . . . 20 . . . . . Parts Built 2 | . . . . . . . . . . . . . . . . . 2 . . . . . . . . . . . . . . . . . . . Authchips . | . . . . . . . . . . . . . . . . . . . . . . . . . . . . . . . . . . . . . Time 35 | . . . . . . . . . . . . . . . . . 35 . . . . . . . . . . . . . . . . . . . Total Part Build Rating 12 | . . . . . . . . . . . . . . . . . 12 . . . . . . . . . . . . . . . . . . . Parts Repaired 20 | . 1 . 3 . . . 1 . 2 . 3 . . . . . 1 . 1 . . . 7 . . . 1 . . . . . . . . . Time 992 | . 32 . 84 . . . 44 . 120 . 126 . . . . . 50 . 28 . . . 446 . . . 62 . . . . . . . . . Parts Recycled . | . . . . . . . . . . . . . . . . . . . . . . . . . . . . . . . . . . . . . Recycled Matter . | . . . . . . . . . . . . . . . . . . . . . . . . . . . . . . . . . . . . . Retrieved Matter . | . . . . . . . . . . . . . . . . . . . . . . . . . . . . . . . . . . . . . Retrieved Components . | . . . . . . . . . . . . . . . . . . . . . . . . . . . . . . . . . . . . . Parts Scanalyzed 5 | . . . . . . . 3 . . . . . . . . . . . 2 . . . . . . . . . . . . . . . . . Part Schematics Acquired 5 | . . . . . . . 3 . . . . . . . . . . . 2 . . . . . . . . . . . . . . . . . Parts Damaged . | . . . . . . . . . . . . . . . . . . . . . . . . . . . . . . . . . . . . . Bothacking | -11 -10 -10 -9 -9 -9 -8 -8 -8 -8 -8 -7 -7 -7 -7 -6 -6 -6 -6 -6 -6 -5 -5 -5 -5 -5 -5 -4 -4 -3 -3 -3 -2 -2 -2 -2 -2 ------------ Run | Yrd Mat Min Mat Min Exi Min Mat Gar Mat Gar Fac Was Fac Gar Fac Was Fac Gar Fac Gar Fac Was Fac Gar Fac Gar Fac Gar Res Gar Tes Res Gar Res Qua Frg Used RIF Installer 11 | . . . . . . . . 2 . 1 . . . 1 . . . 1 . 1 . . . 1 . 1 . 1 . 1 . . 1 . . . Coupler Efficiency 2 | . . . . . . . . . . . . . . . . . . . . . . . . 1 . . . . . . . . 1 . . . Hotswap 1 | . . . . . . . . . . . . . . . . . . . . . . . . . . . . . . 1 . . . . . . Command Fork 1 | . . . . . . . . 1 . . . . . . . . . . . . . . . . . . . . . . . . . . . . Threat Obfuscator 1 | . . . . . . . . . . . . . . 1 . . . . . . . . . . . . . . . . . . . . . . Signal Jammer 1 | . . . . . . . . . . . . . . . . . . . . 1 . . . . . . . . . . . . . . . . Zone Cloak 1 | . . . . . . . . . . 1 . . . . . . . . . . . . . . . . . . . . . . . . . . Autooverride 2 | . . . . . . . . . . . . . . . . . . 1 . . . . . . . . . 1 . . . . . . . . Crosswire 1 | . . . . . . . . . . . . . . . . . . . . . . . . . . 1 . . . . . . . . . . Robots Hacked 311 | . . . 1 . . . . . 1 1 . 6 . 6 5 6 2 13 6 8 4 6 11 11 14 25 13 18 11 18 31 17 23 16 11 27 Non-combat 47 | . . . 1 . . . . . 1 . . . . . 2 . 1 2 2 . 1 . 3 . 4 . 5 1 5 1 4 2 . 6 . 6 Combat 264 | . . . . . . . . . . 1 . 6 . 6 3 6 1 11 4 8 3 6 8 11 10 25 8 17 6 17 27 15 23 10 11 21 Autooverrided 64 | . . . . . . . . . . . . . . . . . . . 2 3 1 . 2 1 1 6 . 3 2 7 10 4 6 3 4 9 Robot Hacks Applied 297 | . . . 1 . . . . . 2 1 . 6 . 6 7 6 3 13 7 5 3 6 15 13 17 20 18 16 12 12 25 14 19 16 9 25 parse_system 25 | . . . 1 . . . . . . . . . . . . . . 1 . . . . 4 . 2 1 2 1 . . 4 . . 1 2 6 no_distress 1 | . . . . . . . . . . . . . . . . . . . . . . . 1 . . . . . . . . . . . . . find_chute 2 | . . . . . . . . . . . . . . . 1 . . . . . 1 . . . . . . . . . . . . . . . ignore_repairs 2 | . . . . . . . . . . . . . . . . . . . . . . . . . . . . . . . . . . 1 . 1 randomize_corridors 1 | . . . . . . . . . . . . . . . . . . . . . . . . . . . . . 1 . . . . . . . find_fabricator 1 | . . . . . . . . . . . . . . . . . . . . . . . 1 . . . . . . . . . . . . . drop_inventory 2 | . . . . . . . . . . . . . . . . . . . . . . . . . . . . . 1 . 1 . . . . . find_station 1 | . . . . . . . . . . . . . . . . . . . . . . . . . . . 1 . . . . . . . . . purge_threat 19 | . . . . . . . . . 1 . . . . . 2 . 1 . 2 . . . . . 2 . 3 . 3 . . 1 . 2 . 2 block_reporting 5 | . . . . . . . . . . . . . . . . . 1 . . . . . . . 1 . . . 1 . . . . 1 . 1 map_route 7 | . . . . . . . . . . . . . . . . . . . . . . . . . . . . . 1 . . 1 . 4 . 1 disable_scanner 5 | . . . . . . . . . . . . . . . . . . . . . . . . . . . . . . . 5 . . . . . report_schematics 1 | . . . . . . . . . . . . . . . . . . . . . . . . . . . . . . . 1 . . . . . ignore_targets 18 | . . . . . . . . . . . . 6 . . . 6 . . . . . 6 . . . . . . . . . . . . . . find_garrison 1 | . . . . . . . . . . . . . . . . . . . . . . . . . . . . . 1 . . . . . . . link_fov 2 | . . . . . . . . . . . . . . . . . . . . . . . . . . . 2 . . . . . . . . . reboot_propulsion 1 | . . . . . . . . . . . . . . . . . . . . . . . 1 . . . . . . . . . . . . . disrupt_area 2 | . . . . . . . . . . . . . . . . . . 1 . . . . . 1 . . . . . . . . . . . . amplify_resonance 30 | . . . . . . . . . . 1 . . . 3 1 . . 4 1 1 . . 2 1 . 3 2 . 1 1 3 . 6 . . . reboot_system 2 | . . . . . . . . . . . . . . . . . . . . . . . . 1 . . . . . . . . . . . 1 overwrite_iff 37 | . . . . . . . . . . . . . . . 1 . 1 3 1 1 1 . 2 4 4 4 2 1 . 2 2 . 5 . 2 1 streamctrl_low 1 | . . . . . . . . . . . . . . . . . . . 1 . . . . . . . . . . . . . . . . . streamctrl_high 2 | . . . . . . . . . . . . . . . . . . . . . . . . . . . . . . . . 1 1 . . . formatsys_low 18 | . . . . . . . . . 1 . . . . . 1 . . 1 2 . . . 1 . 3 . 3 . 1 1 1 . . 1 . 2 formatsys_high 111 | . . . . . . . . . . . . . . 3 1 . . 3 . 3 1 . 3 6 5 12 3 14 2 8 8 11 7 6 5 10 Relay Couplers Released 203 | . . . . . . . . 7 . 9 . . . 30 2 . 4 26 8 14 . . 7 16 3 15 2 19 3 12 1 8 15 . 2 . Ejected 11 | . . . . . . . . . . . . . . . . . 4 . 4 . . . . . . . . . 3 . . . . . . . Machine Destruction 177 | . . . . . . . . 7 . 9 . . . 30 2 . . 26 . 14 . . 3 16 . 15 2 19 . 12 1 4 15 . 2 . Programmers 15 | . . . . . . . . . . . . . . . . . . . 4 . . . 4 . 3 . . . . . . 4 . . . . Attached 81 | . . . . . . . . . 1 1 . 1 . 3 4 . . 5 1 5 . 1 5 6 6 6 5 10 2 4 3 3 3 2 1 3 Crosswired 27 | . . . . . . . . . . . . . . . . . . . . . . . . . . 7 1 5 . 6 . 4 4 . . . Fabnet Peak Effective % . | . . . . . . . . . . . . . . . . . . . . . . . . . . . . . . . . . . . . . Robots Rewired 36 | . . . . . 6 . . . . 3 . . . 4 . . . 6 . 11 . . . 2 . . . . . 3 1 . . . . . Allies Hacked 15 | . . . . . . . . . . . . . . . . . . . . . . . 1 . . . 3 . . 2 4 2 . . 2 1 Hacks Repelled 1 | . . . . . . . . . . . . . . . . . . . . 1 . . . . . . . . . . . . . . . . Allies | -11 -10 -10 -9 -9 -9 -8 -8 -8 -8 -8 -7 -7 -7 -7 -6 -6 -6 -6 -6 -6 -5 -5 -5 -5 -5 -5 -4 -4 -3 -3 -3 -2 -2 -2 -2 -2 -------- Run | Yrd Mat Min Mat Min Exi Min Mat Gar Mat Gar Fac Was Fac Gar Fac Was Fac Gar Fac Gar Fac Was Fac Gar Fac Gar Fac Gar Res Gar Tes Res Gar Res Qua Frg Total Allies 348 | . . . . . 6 . . . 1 3 . 19 . 12 3 18 2 15 10 21 4 . 10 18 14 26 10 23 5 25 23 16 21 11 10 22 Largest Group 21 | . . . . . 6 6 5 . 1 3 . 19 18 17 12 21 18 8 4 7 5 . 5 10 9 14 15 9 12 12 15 6 6 4 3 6 Highest-Rated Group 1048 | . . . . . 74 74 66 . 10 90 . 475 440 503 483 752 620 190 113 417 389 . 153 668 539 541 564 477 633 838 1048 439 311 230 344 638 Highest-Rated Ally 344 | . . . . . 21 21 21 . 10 39 . 35 35 80 80 50 46 46 47 116 116 . 50 148 148 64 114 99 99 148 155 183 148 69 344 344 Total Orders 59 | . . . . . . . . . 3 . . . . . . . . 1 7 1 1 . 5 7 4 . 4 2 . 5 2 3 . . 4 10 STAY 19 | . . . . . . . . . 2 . . . . . . . . . 2 . . . 1 3 2 . 1 . . 1 . 1 . . 2 4 ROAM 1 | . . . . . . . . . . . . . . . . . . . . . . . . . . . . . . 1 . . . . . . FOLLOW 15 | . . . . . . . . . 1 . . . . . . . . . 1 . . . . 4 . . 1 . . 2 . . . . 2 4 AID 21 | . . . . . . . . . . . . . . . . . . 1 4 1 1 . 4 . 1 . 2 . . 1 2 2 . . . 2 DROP 2 | . . . . . . . . . . . . . . . . . . . . . . . . . 1 . . 1 . . . . . . . . PICKUP 1 | . . . . . . . . . . . . . . . . . . . . . . . . . . . . 1 . . . . . . . . Ally Attacks 2332 | . . . . . . 11 41 . . 18 . . 24 122 92 45 148 59 31 112 57 . 47 108 154 90 201 79 63 170 145 193 87 32 36 167 Total Damage 67844 | . . . . . . 97 545 . . 282 . . 192 2119 2075 2392 3614 1603 507 3336 3290 . 1410 2738 4524 1851 4258 2410 1821 5436 5795 6222 2130 1204 1165 6828 Kills 393 | . . . . . . 2 7 . . 4 . . 2 22 20 5 26 9 3 26 17 . 8 18 29 14 30 13 9 21 32 26 11 5 4 30 Allies Corrupted 15 | . . . . . . . . . . . . . . . . . 2 . . 2 . . 1 . . . 2 2 . 2 1 . . 2 1 . Allies Melted 1 | . . . . . . . . . . . . . . . . . . . . . . . . . . . . . . . . . 1 . . . Intel | -11 -10 -10 -9 -9 -9 -8 -8 -8 -8 -8 -7 -7 -7 -7 -6 -6 -6 -6 -6 -6 -5 -5 -5 -5 -5 -5 -4 -4 -3 -3 -3 -2 -2 -2 -2 -2 ------- Run | Yrd Mat Min Mat Min Exi Min Mat Gar Mat Gar Fac Was Fac Gar Fac Was Fac Gar Fac Gar Fac Was Fac Gar Fac Gar Fac Gar Res Gar Tes Res Gar Res Qua Frg Active Infowar (turns) 7682 | . . . 1257 555 1129 972 288 . . . . . 450 1512 526 . . . 444 . 342 9 . 102 . . 96 . . . . . . . . . Machine Analysis 4034 | . . . 1257 555 1129 972 121 . . . . . . . . . . . . . . . . . . . . . . . . . . . . . Spoofing 4 | . . . . . . . . . . . . . . . . . . . . . 4 . . . . . . . . . . . . . . . Jamming 3644 | . . . . . . . 167 . . . . . 450 1512 526 . . . 444 . 338 9 . 102 . . 96 . . . . . . . . . Robot Analysis Total 2 | . . . 1 1 . . . . . . . . . . . . . . . . . . . . . . . . . . . . . . . . Derelict Logs Recovered 1 | . . 1 . . . . . . . . . . . . . . . . . . . . . . . . . . . . . . . . . . Drone Launches . | . . . . . . . . . . . . . . . . . . . . . . . . . . . . . . . . . . . . . Drone Recoveries . | . . . . . . . . . . . . . . . . . . . . . . . . . . . . . . . . . . . . . Exploration | -11 -10 -10 -9 -9 -9 -8 -8 -8 -8 -8 -7 -7 -7 -7 -6 -6 -6 -6 -6 -6 -5 -5 -5 -5 -5 -5 -4 -4 -3 -3 -3 -2 -2 -2 -2 -2 ------------- Run | Yrd Mat Min Mat Min Exi Min Mat Gar Mat Gar Fac Was Fac Gar Fac Was Fac Gar Fac Gar Fac Was Fac Gar Fac Gar Fac Gar Res Gar Tes Res Gar Res Qua Frg Turns Passed 54724 | 86 1532 80 2494 555 1129 972 5080 756 2956 1479 1080 1331 505 1528 648 640 1149 2203 2009 2259 707 853 1894 1757 1815 1485 1886 1783 357 1285 1349 2619 1068 1142 1895 2358 Spaces Moved 24130 | 50 551 33 1094 328 420 398 1906 287 977 498 351 598 266 776 353 347 609 1023 966 1001 252 173 756 769 970 661 743 890 204 717 729 1296 573 674 960 931 Core 42 | 5 . . . . . . . . . . . . . . . . . . . . . . . . . . . . . . . . . . . 37 Treads 24088 | 45 551 33 1094 328 420 398 1906 287 977 498 351 598 266 776 353 347 609 1023 966 1001 252 173 756 769 970 661 743 890 204 717 729 1296 573 674 960 894 Legs . | . . . . . . . . . . . . . . . . . . . . . . . . . . . . . . . . . . . . . Wheels . | . . . . . . . . . . . . . . . . . . . . . . . . . . . . . . . . . . . . . Hover . | . . . . . . . . . . . . . . . . . . . . . . . . . . . . . . . . . . . . . Flight . | . . . . . . . . . . . . . . . . . . . . . . . . . . . . . . . . . . . . . Fastest Speed 50 | 50 160 240 160 160 240 240 235 235 235 238 242 160 170 160 160 160 160 160 160 160 240 160 160 160 160 160 150 150 150 150 150 161 150 150 150 50 Average Speed 181 | 149 206 240 168 160 240 240 235 235 237 241 242 177 170 163 160 160 160 160 160 169 241 223 171 176 160 196 190 152 150 150 157 161 155 153 166 157 Slowest Speed 320 | 160 240 240 240 240 240 240 240 235 238 245 242 242 170 170 160 160 160 160 160 240 320 320 240 240 160 245 237 158 150 150 161 260 161 155 237 163 Overloaded Moves . | . . . . . . . . . . . . . . . . . . . . . . . . . . . . . . . . . . . . . Propulsion Burnouts . | . . . . . . . . . . . . . . . . . . . . . . . . . . . . . . . . . . . . . Robots Hopped . | . . . . . . . . . . . . . . . . . . . . . . . . . . . . . . . . . . . . . Potential Cave-ins . | . . . . . . . . . . . . . . . . . . . . . . . . . . . . . . . . . . . . . Cave-ins Triggered 1 | . . . . . . . . . 1 . . . . . . . . . . . . . . . . . . . . . . . . . . . Exploration Rate (%) 58 | 4 94 10 83 58 88 96 98 51 68 61 12 90 14 93 13 89 18 91 27 88 10 94 23 94 24 87 27 93 10 97 87 38 73 21 93 41 Regions Visited 36 Branch Regions 7 Pre-discovered Areas 7 | . 3 . 2 . 1 . . . 1 . . . . . . . . . . . . . . . . . . . . . . . . . . . Known Exits Taken 13 | . 1 1 . . . 1 1 . 1 . . . 1 . . . 1 . 1 . . . 1 . 1 . 1 . 1 . . 1 . . . . Unknown Exits Taken 7 | 1 . . 1 1 1 . . . . . . . . . . . . . . . . . . . . . . . . . 1 . . 1 1 . Scrap Searched 3 | . . 1 . 1 . 1 . . . . . . . . . . . . . . . . . . . . . . . . . . . . . . Spaces Dug 123 | . . . . 12 . . 7 . 6 2 2 . . 1 . . 9 1 3 4 2 . 1 2 10 6 3 9 1 7 . 6 3 7 6 13 Terrain Destroyed 650 | . 22 . 8 47 . . 25 19 6 19 2 . . 12 . 4 11 44 92 11 3 . 8 12 25 12 34 32 2 34 38 21 18 13 15 61 Melee 16 | . . . . . . . 5 . 6 2 2 . . 1 . . . . . . . . . . . . . . . . . . . . . . Projectile 310 | . . . . . . . 2 . . . . . . . . 4 11 9 21 11 3 . 8 9 25 12 16 32 2 16 14 21 17 13 15 49 AOE 324 | . 22 . 8 47 . . 18 19 . 17 . . . 11 . . . 35 71 . . . . 3 . . 18 . . 18 24 . 1 . . 12 Terrain Rammed . | . . . . . . . . . . . . . . . . . . . . . . . . . . . . . . . . . . . . . Walls Destroyed . | . . . . . . . . . . . . . . . . . . . . . . . . . . . . . . . . . . . . . Machines Disabled . | . . . . . . . . . . . . . . . . . . . . . . . . . . . . . . . . . . . . . Actions | -11 -10 -10 -9 -9 -9 -8 -8 -8 -8 -8 -7 -7 -7 -7 -6 -6 -6 -6 -6 -6 -5 -5 -5 -5 -5 -5 -4 -4 -3 -3 -3 -2 -2 -2 -2 -2 --------- Run | Yrd Mat Min Mat Min Exi Min Mat Gar Mat Gar Fac Was Fac Gar Fac Was Fac Gar Fac Gar Fac Was Fac Gar Fac Gar Fac Gar Res Gar Tes Res Gar Res Qua Frg Total 33059 | 59 864 33 1527 351 524 405 2258 336 1495 674 557 771 303 933 427 417 750 1418 1266 1392 339 508 1329 1159 1218 844 1194 1304 250 930 924 1818 747 784 1254 1697 Wait 4340 | 1 248 . 180 . . . 102 6 381 9 169 76 17 37 46 50 83 173 157 167 51 123 421 144 129 44 323 211 14 82 68 299 30 27 161 311 Move 24102 | 49 550 32 1093 327 419 397 1906 286 977 497 351 597 266 775 353 346 608 1022 965 999 252 172 756 768 969 660 743 889 203 716 728 1296 572 673 959 931 Hop . | . . . . . . . . . . . . . . . . . . . . . . . . . . . . . . . . . . . . . Pick Up 290 | 2 14 . 19 4 3 1 18 5 4 9 4 9 1 10 2 . 8 13 9 18 4 3 9 13 6 13 5 12 3 15 1 14 13 6 5 15 Fast Attach 152 | 6 2 . 11 . . . 6 . 3 3 3 3 1 3 1 . 2 12 1 13 2 6 8 7 2 7 7 11 1 2 4 9 . 3 6 7 Attach 134 | . 1 . 5 . 2 . 9 . 4 6 1 1 1 1 3 1 1 7 6 7 3 7 6 5 3 5 3 6 3 . 6 9 3 1 4 14 Detach 71 | . 1 . 4 2 . . 2 . 1 . 1 2 1 . 2 . 1 4 . 3 . 5 3 3 2 2 2 7 . 1 6 5 . . 4 7 Swap 369 | . 3 . 24 3 1 . 22 7 20 14 5 11 4 12 3 . 5 33 19 21 5 5 17 13 12 9 12 13 1 9 5 14 12 7 15 13 Drop 271 | 1 4 . 27 5 . . 24 3 6 6 1 16 3 12 1 1 7 18 3 17 5 10 2 10 2 11 8 10 1 14 1 10 4 8 10 10 Fire 2913 | . 40 . 133 6 11 4 146 25 80 68 17 56 7 41 15 19 34 126 101 118 16 177 105 192 84 78 86 133 23 85 98 156 112 56 88 377 Melee 71 | . . . 1 . . . 5 2 13 13 3 . . 33 . . . . 1 . . . . . . . . . . . . . . . . . Ram . | . . . . . . . . . . . . . . . . . . . . . . . . . . . . . . . . . . . . . Kick . | . . . . . . . . . . . . . . . . . . . . . . . . . . . . . . . . . . . . . Crush 87 | . 1 1 9 4 . 3 18 . 1 . . . 2 . . . 1 1 3 1 . . 1 . 9 1 2 5 1 3 2 4 . 2 2 10 Escape Stasis 16 | . . . . . . . . 2 . 2 2 . . . . . . . . . . . . . . 10 . . . . . . . . . . Rewire 218 | . . . . . 88 . . . 1 47 . . . 9 1 . . 9 1 28 1 . 1 4 . 4 3 7 . 3 5 2 1 1 . 2 Trap 25 | . . . 21 . . . . . 4 . . . . . . . . . . . . . . . . . . . . . . . . . . . Miscellaneous . | . . . . . . . . . . . . . . . . . . . . . . . . . . . . . . . . . . . . . Route ------- -11/Scrapyard -10/Materials (discovered 6 exits: *Mat x3 / *Min x2 / [*Sub]) -10/Mines (discovered 2 exits: *Mat x2) -9/Materials (discovered 6 exits: *Mat x3 / *Min x2 / [*Sto]) -9/Mines (discovered 3 exits: Mat x2 / *Exi) -9/Exiles -8/Mines (discovered 2 exits: *Mat x2) -8/Materials (discovered 4 exits: *Fac x3 / Gar) -8/Garrison (discovered 3 exits: *Mat x3) -8/Materials (discovered 4 exits: *Fac x3 / Gar) -8/Garrison (discovered 2 exits: *Fac x2) -7/Factory -7/Waste -7/Factory -7/Garrison (discovered 3 exits: [*Fac x3]) -6/Factory (discovered 2 exits: *Fac / [*Low]) -6/Waste -6/Factory -6/Garrison (discovered 3 exits: *Fac x3) -6/Factory -6/Garrison (discovered 3 exits: *Fac x3) -5/Factory (discovered 2 exits: [*Upp x2]) -5/Waste -5/Factory (discovered 2 exits: *Fac / Gar) -5/Garrison (discovered 3 exits: *Fac x3) -5/Factory (discovered 4 exits: *Fac x2 / Gar / Gar) -5/Garrison (discovered 3 exits: *Fac x3) -4/Factory (discovered 2 exits: Ext / Gar) -4/Garrison (discovered 3 exits: *Res x3) -3/Research (discovered 2 exits: [Arm] / Gar) -3/Garrison (discovered 3 exits: *Tes x3) -3/Testing -2/Research (discovered 2 exits: *Acc / Gar) -2/Garrison (discovered 3 exits: *Res x3) -2/Research (discovered 2 exits: *Acc / *Qua) -2/Quarantine (discovered 3 exits: *Acc / [*Sec] / *Frg) -2/Protoforge History --------- Turn | Location | Event 5 | -11/Scrapyard | Discovered new exit (range 15) 87 | -11/Scrapyard | Entered Materials 88 | -10/Materials | Met a group of wandering Federalists 165 | -10/Materials | Discovered new exit (range 5) 202 | -10/Materials | Discovered new exit (range 16) 300 | -10/Materials | Discovered new exit (range 7) 312 | -10/Materials | Build established: Mutant 490 | -10/Materials | Discovered new exit (range 15) 778 | -10/Materials | Discovered new exit (range 7) 1086 | -10/Materials | Discovered new exit (range 16) 1248 | -10/Materials | Identified exit to Materials 1248 | -10/Materials | Identified exit to Mines 1337 | -10/Materials | Learned 4 Materials zone layouts 1366 | -10/Materials | Learned 2 Materials zone layouts 1395 | -10/Materials | Repaired Imp. Ion Engine 1458 | -10/Materials | Learned 4 Recycling zone layouts 1506 | -10/Materials | Learned location of 1 exit from Recycling 1563 | -10/Materials | Learned location of Storage (-9) 1619 | -10/Materials | Entered Mines 1624 | -10/Mines | Learned Materials stockpile data 1699 | -10/Mines | Entered Materials 1699 | -9/Materials | Evolved 2 slots: Propulsion x1, Utility x1 1700 | -9/Materials | Identified exit to Materials 1753 | -9/Materials | Discovered new exit (range 7) 2563 | -9/Materials | Discovered new exit (range 6) 3125 | -9/Materials | Repaired Lgt. Treads 3152 | -9/Materials | Repaired Lgt. Treads 3249 | -9/Materials | Build established: Scavenger-Mutant 3261 | -9/Materials | Repaired Autogun 3630 | -9/Materials | Discovered new exit (range 16) 3793 | -9/Materials | Learned 4 Recycling zone layouts 3841 | -9/Materials | Learned Materials stockpile data 3905 | -9/Materials | Loaded intel: 2 recycling unit locations 3923 | -9/Materials | Learned location of Recycling (-9) 3929 | -9/Materials | Learned location of 1 exit from Storage 3930 | -9/Materials | Learned Recycling recycling unit intel 3935 | -9/Materials | Learned Recycling recycling unit intel 3951 | -9/Materials | Learned 2 Materials zone layouts 3975 | -9/Materials | Learned Materials recycling unit intel 4193 | -9/Materials | Entered Mines 4200 | -9/Mines | Central database locked down 4374 | -9/Mines | Deemed a non-threat by the Exiles lab entrance 4374 | -9/Mines | Discovered new exit (range 5) 4522 | -9/Mines | Met a Derelict who couldn't figure out how to use a Trap Extractor 4655 | -9/Mines | Excavation squad dispatched 4655 | -9/Mines | A large section of the Mines collapsed 4748 | -9/Mines | Entered Exiles 4748 | -9/Exiles | Found Exiles lab destroyed 5025 | -9/Exiles | Opened EX-Vault 5032 | -9/Exiles | Found Prototype Energy Cannon 5036 | -9/Exiles | Identified Gui. Plasma Cannon 5214 | -9/Exiles | Learned location of Zion (-7) 5858 | -9/Exiles | Discovered new exit (range 10) 5877 | -9/Exiles | Entered Mines 5877 | -8/Mines | Accompanied by 6 allies 5963 | -8/Mines | Build established: Commander-Mutant 6561 | -8/Mines | Discovered exit to Materials (range 9) 6849 | -8/Mines | Entered Materials 6849 | -8/Materials | Accompanied by 5 allies 6849 | -8/Materials | Evolved 2 slots: Utility x2 6850 | -8/Materials | Identified exit to Factory 6852 | -8/Materials | Loaded intel: 2 recycling unit locations 7003 | -8/Materials | Lost 3 allies 7184 | -8/Materials | Build established: Mutant 7493 | -8/Materials | Discovered exit to Factory (range 3) 8397 | -8/Materials | Repaired Plasma Cannon 8648 | -8/Materials | Discovered exit to Factory (range 16) 8853 | -8/Materials | Learned Factory trap positions 8890 | -8/Materials | Learned Storage emergency access door positions 8918 | -8/Materials | Learned 4 Recycling zone layouts 8946 | -8/Materials | Learned 2 Storage zone layouts 8947 | -8/Materials | Learned Storage machine intel 8971 | -8/Materials | Learned 4 Lower Caves zone layouts 10945 | -8/Materials | Garrison activated, responded to threat 11929 | -8/Materials | Identified exit to Garrison 11929 | -8/Materials | Entered Garrison 11999 | -8/Garrison | Discovered new exit (range 79) 11999 | -8/Garrison | Discovered new exit (range 109) 11999 | -8/Garrison | Discovered new exit (range 75) 12089 | -8/Garrison | Garrison Relay disabled 12108 | -8/Garrison | Garrison Relay disabled 12225 | -8/Garrison | Installed Relay Interface Framework 12371 | -8/Garrison | Triggered checkpoint 12418 | -8/Garrison | Triggered checkpoint 12638 | -8/Garrison | Expanded RIF knowledge: Command Fork 12685 | -8/Garrison | Entered Materials 13574 | -8/Materials | Discovered exit to Factory (range 13) 13849 | -8/Materials | Repaired Enh. Autogun 13954 | -8/Materials | Crushed by falling debris 13954 | -8/Materials | Core integrity fell below 50% 13991 | -8/Materials | Learned Storage stockpile data 14060 | -8/Materials | Learned 2 Storage zone layouts 14086 | -8/Materials | Learned 4 Factory zone layouts 14087 | -8/Materials | Learned location of 1 exit from Lower Caves 14096 | -8/Materials | Learned Storage garrison access intel 14117 | -8/Materials | Learned 2 Lower Caves zone layouts 14161 | -8/Materials | Repaired Enh. Autogun 15640 | -8/Materials | Identified exit to Garrison 15641 | -8/Materials | Entered Garrison 15729 | -8/Garrison | Triggered checkpoint 15956 | -8/Garrison | Garrison Relay disabled 16019 | -8/Garrison | Expanded RIF knowledge: Zone Cloak 16240 | -8/Garrison | Lost 4 parts (1p1n2u) 16251 | -8/Garrison | Destroyed 11 combat bots 16253 | -8/Garrison | Build established: Bothacker-Mutant 16260 | -8/Garrison | Core integrity fell below 20% 16299 | -8/Garrison | Triggered checkpoint 16429 | -8/Garrison | Triggered checkpoint 16494 | -8/Garrison | Garrison Relay disabled 16601 | -8/Garrison | Triggered checkpoint 16680 | -8/Garrison | Discovered exit to Factory (range 15) 17098 | -8/Garrison | Discovered exit to Factory (range 10) 17120 | -8/Garrison | Entered Factory 17120 | -7/Factory | Evolved 2 slots: Propulsion x1, Utility x1 17122 | -7/Factory | Loaded intel: 93 trap records 17964 | -7/Factory | Repaired Mak. Transmission Jammer? 18064 | -7/Factory | Repaired Missile Launcher 18112 | -7/Factory | Repaired Hrd. Medium Armor Plating 18200 | -7/Factory | Sucked down chute 18200 | -7/Factory | Entered Waste 18228 | -7/Waste | Spotted C-40 Crusher 18308 | -7/Waste | Spotted C-40 Crusher 18310 | -7/Waste | Spotted C-40 Crusher 18314 | -7/Waste | Spotted C-40 Crusher 18327 | -7/Waste | Spotted C-40 Crusher 18435 | -7/Waste | Spotted C-40 Crusher 18508 | -7/Waste | Destroyed C-40 Crusher 18590 | -7/Waste | Destroyed C-40 Crusher 18663 | -7/Waste | Destroyed C-40 Crusher 18688 | -7/Waste | Destroyed C-40 Crusher 18730 | -7/Waste | Destroyed C-40 Crusher 18756 | -7/Waste | Destroyed C-40 Crusher 18969 | -7/Waste | Discovered new exit (range 16) 19395 | -7/Waste | Warlord forces began an assault 19531 | -7/Waste | Entered Factory 19531 | -7/Factory | Accompanied by 19 allies 20021 | -7/Factory | Identified exit to Garrison 20036 | -7/Factory | Entered Garrison 20036 | -7/Garrison | Accompanied by 17 allies 20074 | -7/Garrison | Triggered checkpoint 20104 | -7/Garrison | Expanded RIF knowledge: Threat Obfuscation 20246 | -7/Garrison | Garrison Relay disabled 20330 | -7/Garrison | Triggered checkpoint 20330 | -7/Garrison | Triggered checkpoint 20385 | -7/Garrison | Destroyed 9 combat bots 20395 | -7/Garrison | Lost 12 allies 20411 | -7/Garrison | Triggered checkpoint 20480 | -7/Garrison | Discovered new exit (range 4) 20656 | -7/Garrison | Triggered checkpoint 20706 | -7/Garrison | Garrison Relay disabled 20767 | -7/Garrison | Garrison Relay disabled 20811 | -7/Garrison | Garrison Relay disabled 20814 | -7/Garrison | Garrison Relay disabled 20846 | -7/Garrison | Garrison Relay disabled 20967 | -7/Garrison | Discovered new exit (range 10) 21004 | -7/Garrison | Triggered checkpoint 21025 | -7/Garrison | Garrison Relay disabled 21110 | -7/Garrison | Triggered checkpoint 21127 | -7/Garrison | Build established: Botlord-Mutant 21216 | -7/Garrison | Found embedded Infiltrators 21326 | -7/Garrison | Rescued a captive Derelict 21328 | -7/Garrison | Rescued a captive Derelict 21416 | -7/Garrison | Discovered new exit (range 10) 21420 | -7/Garrison | Triggered checkpoint 21498 | -7/Garrison | Garrison Relay disabled 21564 | -7/Garrison | Entered Factory 21564 | -6/Factory | Accompanied by 12 allies 21564 | -6/Factory | Evolved 2 slots: Utility x2 21632 | -6/Factory | Discovered new exit (range 7) 21675 | -6/Factory | Lost 3 allies 21957 | -6/Factory | Discovered new exit (range 13) 21970 | -6/Factory | Lost 3 allies 22027 | -6/Factory | Lost 3 allies 22206 | -6/Factory | Build established: Bothacker-Mutant 22212 | -6/Factory | Sucked down chute 22212 | -6/Factory | Entered Waste 22235 | -6/Waste | Spotted C-40 Crusher 22284 | -6/Waste | Spotted C-40 Crusher 22290 | -6/Waste | Spotted C-40 Crusher 22326 | -6/Waste | Spotted C-40 Crusher 22338 | -6/Waste | Spotted C-40 Crusher 22348 | -6/Waste | Spotted C-40 Crusher 22372 | -6/Waste | 3 allies followed down the chute 22388 | -6/Waste | Discovered new exit (range 11) 22467 | -6/Waste | Allies destroyed C-40 Crusher 22546 | -6/Waste | Warlord forces began an assault 22852 | -6/Waste | Entered Factory 22852 | -6/Factory | Accompanied by 18 allies 23082 | -6/Factory | Spotted B-75 Beast 23086 | -6/Factory | Destroyed B-75 Beast 23115 | -6/Factory | Lost 6 allies 23141 | -6/Factory | Fabricated Adv. Plasma Cannon (x2) 23302 | -6/Factory | Garrison activated, responded to threat 23304 | -6/Factory | Found Prototype Launcher 23304 | -6/Factory | Identified Rocket Array 23425 | -6/Factory | Repaired Imp. Heavy Armor Plating 23482 | -6/Factory | Garrison activated, responded to threat 23552 | -6/Factory | First assault squad dispatched 23557 | -6/Factory | Cargo convoy interrupted 23913 | -6/Factory | Lost 3 allies 23979 | -6/Factory | Identified exit to Garrison 24001 | -6/Factory | Entered Garrison 24001 | -6/Garrison | Accompanied by 1 ally 24125 | -6/Garrison | Garrison Relay disabled 24186 | -6/Garrison | Spotted B-75 Beast 24236 | -6/Garrison | Destroyed B-75 Beast 24265 | -6/Garrison | Triggered checkpoint 24296 | -6/Garrison | Triggered checkpoint 24327 | -6/Garrison | Garrison Relay disabled 24575 | -6/Garrison | Triggered checkpoint 24608 | -6/Garrison | Lost 3 allies 24613 | -6/Garrison | Triggered checkpoint 24617 | -6/Garrison | Discovered new exit (range 10) 24642 | -6/Garrison | Build established: Botlord-Mutant 24657 | -6/Garrison | Spotted Executioner 24657 | -6/Garrison | Spotted Executioner 24680 | -6/Garrison | Allies destroyed Executioner 24686 | -6/Garrison | Allies destroyed Executioner 24716 | -6/Garrison | Lost 3 allies 24756 | -6/Garrison | Garrison Relay disabled 24790 | -6/Garrison | Found Quantum Capacitor 24845 | -6/Garrison | Triggered checkpoint 24853 | -6/Garrison | Triggered checkpoint 24893 | -6/Garrison | Triggered checkpoint 25050 | -6/Garrison | Garrison Relay disabled 25102 | -6/Garrison | Discovered new exit (range 13) 25485 | -6/Garrison | Garrison Relay disabled 25660 | -6/Garrison | Triggered checkpoint 25698 | -6/Garrison | Garrison Relay disabled 25754 | -6/Garrison | Rescued a captive Derelict 25756 | -6/Garrison | Rescued a captive Derelict 25998 | -6/Garrison | Found Prototype Launcher 25998 | -6/Garrison | Identified Mni. Smartbomb Launcher 26077 | -6/Garrison | Found Prototype Hackware 26160 | -6/Garrison | Discovered new exit (range 9) 26176 | -6/Garrison | Expanded RIF knowledge: Autooverride 26204 | -6/Garrison | Entered Factory 26204 | -6/Factory | Accompanied by 2 allies 26554 | -6/Factory | First assault squad dispatched 26648 | -6/Factory | Lost 4 allies 26961 | -6/Factory | Identified Exp. System Shield 27395 | -6/Factory | Repaired Adv. Cooling System 27767 | -6/Factory | Fabricated G-50 Soldier? 27779 | -6/Factory | Identified exit to Garrison 27852 | -6/Factory | Spotted B-75 Beast 27906 | -6/Factory | Core integrity fell below 50% 27925 | -6/Factory | Destroyed B-75 Beast 27939 | -6/Factory | Lost 3 parts (2n1u) 28089 | -6/Factory | Fabricated M-13 Machinist (x1) 28213 | -6/Factory | Entered Garrison 28213 | -6/Garrison | Accompanied by 4 allies 28363 | -6/Garrison | Triggered checkpoint 28505 | -6/Garrison | Lost 6 allies 28545 | -6/Garrison | Triggered checkpoint 28647 | -6/Garrison | Triggered checkpoint 28752 | -6/Garrison | Garrison Relay disabled 28855 | -6/Garrison | Triggered checkpoint 29105 | -6/Garrison | Triggered checkpoint 29125 | -6/Garrison | Triggered checkpoint 29147 | -6/Garrison | Triggered checkpoint 29151 | -6/Garrison | Triggered checkpoint 29186 | -6/Garrison | Lost 3 allies 29243 | -6/Garrison | Lost 4 parts (1p1n2w) 29349 | -6/Garrison | Triggered checkpoint 29396 | -6/Garrison | Found embedded Infiltrators 29403 | -6/Garrison | Gui. Plasma Cannon suddenly broke down 29406 | -6/Garrison | Garrison Relay disabled 29568 | -6/Garrison | Discovered new exit (range 25) 29568 | -6/Garrison | Discovered new exit (range 27) 29568 | -6/Garrison | Discovered new exit (range 70) 29711 | -6/Garrison | Core integrity fell below 20% 29727 | -6/Garrison | Triggered checkpoint 29789 | -6/Garrison | Garrison Relay disabled 30075 | -6/Garrison | Spotted B-75 Beast 30091 | -6/Garrison | Destroyed B-75 Beast 30121 | -6/Garrison | Rewired B-86 Titan 30143 | -6/Garrison | Rewired B-86 Titan 30315 | -6/Garrison | Garrison Relay disabled 30331 | -6/Garrison | Triggered checkpoint 30373 | -6/Garrison | Expanded RIF knowledge: Signal Jamming 30472 | -6/Garrison | Entered Factory 30472 | -5/Factory | Accompanied by 4 allies 30472 | -5/Factory | Evolved 2 slots: Power x1, Utility x1 30537 | -5/Factory | Fabricated M-13 Machinist? 30653 | -5/Factory | Discovered new exit (range 16) 30817 | -5/Factory | Discovered new exit (range 15) 30858 | -5/Factory | Lost 4 allies 31072 | -5/Factory | First assault squad dispatched 31179 | -5/Factory | Sucked down chute 31179 | -5/Factory | Entered Waste 31194 | -5/Waste | EMP discharged 31239 | -5/Waste | Spotted C-40 Crusher 31240 | -5/Waste | Spotted C-40 Crusher 31240 | -5/Waste | Spotted C-40 Crusher 31247 | -5/Waste | Spotted C-40 Crusher 31280 | -5/Waste | Spotted C-40 Crusher 31282 | -5/Waste | Spotted C-40 Crusher 31294 | -5/Waste | EMP discharged 31294 | -5/Waste | System corruption reached 10% 31318 | -5/Waste | Destroyed C-40 Crusher 31327 | -5/Waste | Found Unknown Protection 31327 | -5/Waste | Identified Damper Plating 31394 | -5/Waste | EMP discharged 31415 | -5/Waste | Destroyed C-40 Crusher 31494 | -5/Waste | EMP discharged 31594 | -5/Waste | EMP discharged 31694 | -5/Waste | EMP discharged 31794 | -5/Waste | EMP discharged 31817 | -5/Waste | Destroyed C-40 Crusher 31829 | -5/Waste | Destroyed C-40 Crusher 31894 | -5/Waste | EMP discharged 31903 | -5/Waste | Discovered new exit (range 16) 31994 | -5/Waste | EMP discharged 32032 | -5/Waste | Entered Factory 32584 | -5/Factory | P-70 Sage assimilated allied Sentinel 6b 32796 | -5/Factory | Fabricated M-13 Machinist? 32983 | -5/Factory | Repaired Quantum Capacitor 33040 | -5/Factory | Repaired Hvy. Treads 33130 | -5/Factory | Repaired Hvy. Treads 33193 | -5/Factory | Repaired Matter Neutralizer 33257 | -5/Factory | Repaired Antimatter Reactor 33277 | -5/Factory | Spotted B-75 Beast 33309 | -5/Factory | Allies destroyed B-75 Beast 33586 | -5/Factory | Repaired Quantum Capacitor 33674 | -5/Factory | Repaired Broken Matter Neutralizer 33828 | -5/Factory | Discovered new exit (range 14) 33926 | -5/Factory | Identified exit to Garrison 33926 | -5/Factory | Entered Garrison 34108 | -5/Garrison | Triggered checkpoint 34114 | -5/Garrison | Spotted B-75 Beast 34132 | -5/Garrison | Triggered checkpoint 34139 | -5/Garrison | Triggered checkpoint 34146 | -5/Garrison | Triggered checkpoint 34196 | -5/Garrison | Lost 3 allies 34338 | -5/Garrison | Discovered new exit (range 10) 34388 | -5/Garrison | Spotted B-75 Beast 34393 | -5/Garrison | Rewired B-90 Cyclops 34397 | -5/Garrison | Rewired B-75 Beast 34398 | -5/Garrison | Spotted B-75 Beast 34402 | -5/Garrison | Destroyed B-75 Beast 34407 | -5/Garrison | Allies destroyed B-75 Beast 34518 | -5/Garrison | Triggered checkpoint 34547 | -5/Garrison | Rescued a captive Derelict 34548 | -5/Garrison | Rescued a captive Derelict 34580 | -5/Garrison | Garrison Relay disabled 34890 | -5/Garrison | Triggered checkpoint 34924 | -5/Garrison | Garrison Relay disabled 34975 | -5/Garrison | Discovered new exit (range 14) 35093 | -5/Garrison | Found embedded Infiltrators 35116 | -5/Garrison | Triggered checkpoint 35137 | -5/Garrison | Garrison Relay disabled 35215 | -5/Garrison | Discovered new exit (range 15) 35245 | -5/Garrison | Expanded RIF knowledge: Coupler Efficiency 35369 | -5/Garrison | Triggered checkpoint 35620 | -5/Garrison | Found Relay Coupler [Proto] 35622 | -5/Garrison | Found Relay Coupler [Proto] 35683 | -5/Garrison | Entered Factory 35683 | -5/Factory | Accompanied by 6 allies 35849 | -5/Factory | Identified exit to Garrison 36044 | -5/Factory | Discovered new exit (range 15) 36883 | -5/Factory | First assault squad dispatched 37103 | -5/Factory | Lost 3 allies 37219 | -5/Factory | Discovered new exit (range 9) 37310 | -5/Factory | Identified exit to Garrison 37462 | -5/Factory | Lost 3 allies 37498 | -5/Factory | Entered Garrison 37498 | -5/Garrison | Accompanied by 2 allies 37576 | -5/Garrison | Triggered checkpoint 37595 | -5/Garrison | Garrison Relay disabled 37696 | -5/Garrison | Expanded RIF knowledge: Crosswire 37784 | -5/Garrison | Triggered checkpoint 37810 | -5/Garrison | Spotted B-75 Beast 37819 | -5/Garrison | Destroyed B-75 Beast 37836 | -5/Garrison | Triggered checkpoint 37837 | -5/Garrison | Lost 8 allies 37852 | -5/Garrison | Triggered checkpoint 37857 | -5/Garrison | Triggered checkpoint 37951 | -5/Garrison | Discovered new exit (range 13) 38022 | -5/Garrison | Triggered checkpoint 38047 | -5/Garrison | Garrison Relay disabled 38218 | -5/Garrison | Found Quantum Capacitor 38326 | -5/Garrison | Triggered checkpoint 38371 | -5/Garrison | Garrison Relay disabled 38438 | -5/Garrison | Discovered new exit (range 14) 38726 | -5/Garrison | Triggered checkpoint 38777 | -5/Garrison | Garrison Relay disabled 38842 | -5/Garrison | Discovered new exit (range 10) 38983 | -5/Garrison | Entered Factory 38983 | -4/Factory | Accompanied by 14 allies 38983 | -4/Factory | Evolved 2 slots: Propulsion x1, Utility x1 38984 | -4/Factory | Identified exit to Extension 39157 | -4/Factory | Garrison activated, responded to threat 39640 | -4/Factory | Repaired Imp. Force Field 39850 | -4/Factory | Cargo convoy interrupted 39878 | -4/Factory | Spotted Executioner 39899 | -4/Factory | Destroyed Executioner 39917 | -4/Factory | Lost 14 allies 39948 | -4/Factory | Found Prototype Device 39948 | -4/Factory | Identified Exp. Transmission Jammer 39961 | -4/Factory | Found Prototype Processor 39961 | -4/Factory | Identified Exp. Signal Interpreter 40050 | -4/Factory | P-70 Sage assimilated allied Sentinel 6n 40604 | -4/Factory | Allied Derelicts emerged from ambush trap array 40646 | -4/Factory | Identified exit to Garrison 40869 | -4/Factory | Entered Garrison 40869 | -4/Garrison | Accompanied by 1 ally 40911 | -4/Garrison | Triggered checkpoint 40991 | -4/Garrison | Garrison Relay disabled 41115 | -4/Garrison | Triggered checkpoint 41115 | -4/Garrison | Spotted B-86 Titan 41131 | -4/Garrison | Triggered checkpoint 41133 | -4/Garrison | Triggered checkpoint 41134 | -4/Garrison | Destroyed B-86 Titan 41143 | -4/Garrison | Triggered checkpoint 41226 | -4/Garrison | Heavy support dispatched to Research 41229 | -4/Garrison | Lost 5 allies 41348 | -4/Garrison | Lost 3 allies 41453 | -4/Garrison | Discovered new exit (range 15) 41468 | -4/Garrison | Expanded RIF knowledge: Autooverride 41494 | -4/Garrison | Heavy support dispatched to Research 41604 | -4/Garrison | H-XX Assembler disabled 41709 | -4/Garrison | Triggered checkpoint 41734 | -4/Garrison | Garrison Relay disabled 42014 | -4/Garrison | Discovered new exit (range 11) 42019 | -4/Garrison | Triggered checkpoint 42032 | -4/Garrison | Garrison Relay disabled 42535 | -4/Garrison | Rescued a captive Derelict 42536 | -4/Garrison | Rescued a captive Derelict 42559 | -4/Garrison | Triggered checkpoint 42577 | -4/Garrison | Garrison Relay disabled 42630 | -4/Garrison | Discovered new exit (range 3) 42652 | -4/Garrison | Entered Research 42652 | -3/Research | Accompanied by 9 allies 42652 | -3/Research | Evolved 2 slots: Propulsion x1, Utility x1 42763 | -3/Research | Spotted B-86 Titan 42764 | -3/Research | Lost 4 allies 42773 | -3/Research | Allies destroyed B-86 Titan 42874 | -3/Research | Lost 3 allies 42914 | -3/Research | Discovered new exit (range 85) 42992 | -3/Research | Identified exit to Garrison 43009 | -3/Research | Entered Garrison 43009 | -3/Garrison | Accompanied by 7 allies 43012 | -3/Garrison | Spotted B-90 Cyclops 43023 | -3/Garrison | Rewired B-90 Cyclops 43025 | -3/Garrison | Destroyed B-90 Cyclops 43129 | -3/Garrison | Triggered checkpoint 43142 | -3/Garrison | Expanded RIF knowledge: Hotswap 43159 | -3/Garrison | Garrison Relay disabled 43184 | -3/Garrison | Lost 3 allies 43246 | -3/Garrison | Triggered checkpoint 43255 | -3/Garrison | Triggered checkpoint 43267 | -3/Garrison | Triggered checkpoint 43277 | -3/Garrison | Triggered checkpoint 43338 | -3/Garrison | Lost 5 allies 43359 | -3/Garrison | Spotted B-86 Titan 43395 | -3/Garrison | Allies destroyed B-86 Titan 43523 | -3/Garrison | Discovered new exit (range 10) 43528 | -3/Garrison | Spotted Executioner 43530 | -3/Garrison | Spotted Executioner 43548 | -3/Garrison | Destroyed Executioner 43570 | -3/Garrison | Allies destroyed Executioner 43582 | -3/Garrison | Found Exp. Core Analyzer 43596 | -3/Garrison | Lost 3 allies 43627 | -3/Garrison | Triggered checkpoint 43646 | -3/Garrison | Garrison Relay disabled 43794 | -3/Garrison | Discovered new exit (range 11) 43827 | -3/Garrison | Triggered checkpoint 43849 | -3/Garrison | Found embedded Infiltrators 43860 | -3/Garrison | Garrison Relay disabled 44089 | -3/Garrison | Triggered checkpoint 44231 | -3/Garrison | Discovered new exit (range 10) 44294 | -3/Garrison | Entered Testing 44294 | -3/Testing | Accompanied by 12 allies 44351 | -3/Testing | Rewired PH-TCPQSZFJGN 44545 | -3/Testing | Assembled infested ambush trap array 44701 | -3/Testing | P-80 Master assimilated allied Warden 8i 44702 | -3/Testing | P-80 Master assimilated allied Warden 8c 44714 | -3/Testing | P-80 Master assimilated allied Warden 8d 44735 | -3/Testing | Lost 6 allies 44788 | -3/Testing | Lost 5 allies 44814 | -3/Testing | Found Prototype Energy Cannon 44814 | -3/Testing | Identified Potential Cannon 44820 | -3/Testing | Found Potential Cannon 45044 | -3/Testing | First assault squad dispatched 45084 | -3/Testing | P-80 Master assimilated allied Assassin 8d 45224 | -3/Testing | Found Prototype Device 45224 | -3/Testing | Identified Exp. Hardlight Generator 45308 | -3/Testing | Scanned by Researcher 45403 | -3/Testing | Discovered new exit (range 14) 45643 | -3/Testing | Entered Research 45643 | -2/Research | Accompanied by 4 allies 45643 | -2/Research | Evolved 2 slots: Power x1, Utility x1 46099 | -2/Research | Lost 4 allies 46106 | -2/Research | P-80 Master assimilated allied Archangel 8a 46221 | -2/Research | Spotted B-90 Cyclops 46228 | -2/Research | Allies destroyed B-90 Cyclops 46303 | -2/Research | Lost 4 allies 46481 | -2/Research | Discovered new exit (range 8) 46495 | -2/Research | Identified exit to Access 47656 | -2/Research | Found Quantum Capacitor 48011 | -2/Research | Spotted B-90 Cyclops 48034 | -2/Research | Assimilated Cyclops 9a with formatsys_high 48091 | -2/Research | P-80 Master assimilated allied Enforcer 9e 48095 | -2/Research | System corruption reached 10% 48262 | -2/Research | Identified exit to Garrison 48262 | -2/Research | Entered Garrison 48300 | -2/Garrison | Triggered checkpoint 48324 | -2/Garrison | Garrison Relay disabled 48388 | -2/Garrison | Rescued a captive Derelict 48402 | -2/Garrison | Spotted B-90 Cyclops 48412 | -2/Garrison | Hijacked Cyclops 9b control node with streamctrl_high 48412 | -2/Garrison | Triggered checkpoint 48424 | -2/Garrison | Triggered checkpoint 48477 | -2/Garrison | Destroyed 7 combat bots 48477 | -2/Garrison | Lost 5 allies 48583 | -2/Garrison | Discovered new exit (range 12) 48599 | -2/Garrison | Garrison Relay disabled 48649 | -2/Garrison | Expanded RIF knowledge: Coupler Efficiency 48805 | -2/Garrison | Lost 3 parts (1p1n1u) 48808 | -2/Garrison | Triggered checkpoint 48844 | -2/Garrison | Triggered checkpoint 48892 | -2/Garrison | Garrison Relay disabled 48922 | -2/Garrison | Discovered new exit (range 8) 48946 | -2/Garrison | Spotted B-90 Cyclops 48963 | -2/Garrison | Allies destroyed B-90 Cyclops 49111 | -2/Garrison | Lost 4 allies 49129 | -2/Garrison | Discovered new exit (range 11) 49168 | -2/Garrison | Triggered checkpoint 49242 | -2/Garrison | Garrison Relay disabled 49330 | -2/Garrison | Entered Research 49330 | -2/Research | Accompanied by 1 ally 49630 | -2/Research | Discovered exit to Access (range 15) 50055 | -2/Research | Found Imp. Powered Armor 50072 | -2/Research | Found Quantum Capacitor 50320 | -2/Research | P-80 Master assimilated allied Terminator 9a 50356 | -2/Research | Discovered new exit (range 32) 50460 | -2/Research | Lost 4 allies 50472 | -2/Research | Entered Quarantine 50636 | -2/Quarantine | Cryocooling Duct disabled 50651 | -2/Quarantine | Ambient heat levels rising (+20) 50651 | -2/Quarantine | Non-combat units ordered to evacuate 50726 | -2/Quarantine | Found Alien Artifact 50726 | -2/Quarantine | Identified Phase Redirector 51393 | -2/Quarantine | Found Alien Artifact 51751 | -2/Quarantine | Discovered exit to Access (range 15) 52211 | -2/Quarantine | Spotted Fortress 52234 | -2/Quarantine | Assimilated Fortress with formatsys_high 52344 | -2/Quarantine | Discovered new exit (range 6) 52344 | -2/Quarantine | Discovered new exit (range 6) 52367 | -2/Quarantine | Entered Protoforge 52367 | -2/Protoforge | Accompanied by 1 ally 52381 | -2/Protoforge | Superfortress began startup sequence 52622 | -2/Protoforge | Spotted Hotshot 52637 | -2/Protoforge | Spotted Hotshot 52638 | -2/Protoforge | Spotted Hotshot 52640 | -2/Protoforge | Spotted Hotshot 52653 | -2/Protoforge | Destroyed Hotshot 52656 | -2/Protoforge | Allies destroyed Hotshot 52659 | -2/Protoforge | Allies destroyed Hotshot 52664 | -2/Protoforge | Destroyed Hotshot 52786 | -2/Protoforge | Spotted Hotshot 52800 | -2/Protoforge | Spotted Hotshot 52801 | -2/Protoforge | Spotted Hotshot 52804 | -2/Protoforge | Spotted Hotshot 52809 | -2/Protoforge | Spotted Hotshot 52817 | -2/Protoforge | Destroyed Hotshot 52820 | -2/Protoforge | Destroyed Hotshot 52823 | -2/Protoforge | Destroyed Hotshot 52829 | -2/Protoforge | Destroyed Hotshot 52838 | -2/Protoforge | Allies destroyed Hotshot 53133 | -2/Protoforge | Spotted Hotshot 53134 | -2/Protoforge | Spotted Hotshot 53137 | -2/Protoforge | Destroyed Hotshot 53138 | -2/Protoforge | Spotted Hotshot 53142 | -2/Protoforge | Allies destroyed Hotshot 53192 | -2/Protoforge | Spotted AP7-3 53192 | -2/Protoforge | Spotted AP7-3 53208 | -2/Protoforge | Spotted Overlord 53226 | -2/Protoforge | Destroyed AP7-3 53242 | -2/Protoforge | Assimilated Overlord with formatsys_high 53262 | -2/Protoforge | Allies destroyed AP7-3 53268 | -2/Protoforge | Lost 3 parts (1n1u1w) 53293 | -2/Protoforge | Found Exp. Targeting Computer 53548 | -2/Protoforge | Lost 3 allies 53631 | -2/Protoforge | Destroyed Hotshot 53875 | -2/Protoforge | Spotted EXE-6 53877 | -2/Protoforge | Spotted EXE-6 53880 | -2/Protoforge | Destroyed EXE-6 53885 | -2/Protoforge | Allies destroyed EXE-6 53902 | -2/Protoforge | Spotted Decapitator 53904 | -2/Protoforge | Spotted Decapitator 53908 | -2/Protoforge | Destroyed Decapitator 53914 | -2/Protoforge | Allies destroyed Decapitator 54032 | -2/Protoforge | Spotted EXE-6 54034 | -2/Protoforge | Spotted EXE-6 54061 | -2/Protoforge | Destroyed EXE-6 54070 | -2/Protoforge | Destroyed EXE-6 54167 | -2/Protoforge | Fabricated M-13 Machinist (x1) 54180 | -2/Protoforge | Build established: Scavenger-Mutant 54367 | -2/Protoforge | First assault squad dispatched 54665 | -2/Protoforge | Core integrity fell below 50% 54669 | -2/Protoforge | Identified Subatomic Replicator 54669 | -2/Protoforge | Used Subatomic Replicator to replicate Potential Cannon 54723 | -2/Protoforge | Core integrity fell below 20% 54725 | -2/Protoforge | Destroyed by Superfortress with Omega Cannon Last Messages --------------- 54715_ Exp. Targeting Computer destroyed. 54715_ Critical hit (Blast). 54716_ Penetrated by Slug. 54717_ Acquired 15 matter. 54719_ Penetrated by Slug. 54720_ N-04 Retriever collects Adv. Remote Force Field. 54722_ Exp. VSS Leg destroyed. 54722_ Relay Coupler [Proto] destroyed. 54722_ Faulty Exp. VSS Leg destroyed. 54722_ Machine disabled. 54722_ Slug penetrates Machine. 54722_ Penetrated by Slug. 54722_ Broken Exp. Core Analyzer destroyed. 54722_ Slug penetrates Wall. 54723_ N-04 Retriever collects Relay Coupler [Sentry]. 54723_ N-04 Retriever collects Mni. Smartbomb Launcher. 54725_ N-04 Retriever collects Enh. Nova Cannon. 54725_ N-04 Retriever collects Lrn. Proton Cannon. 54725_ K-01 Serf collects debris. 54725_ Slug penetrates Machine. Map ----- +----------------------------------------------------+ | ?????????????????????????????????????????????????? | | ?????????????????????????????????????????????????? | | ?????????????????????????????????????????????????? | | ?????????????????????????????????????????????????? | | ?????????????????????????????????????????????????? | | ?????????????????????????????????????????????????? | | ?????????????????????????????????????????????????? | | ?????????????????????????????????????????????????? | | ?????????????????????????????????????????????????? | | ?????????????????????????????????????????????????? | | ??????????????????????? ????????????????????????? | | ????????????????????? ????????????????????????? | | ?????????????????? ????????????????????????? | | ?????????????????# #########???????????????? | | ???????????????""" """"""""#???????????????? | | ??????????????"" k g ####????????????? | | ??????????????" gg ; #######???#### | | ?????????????T" ! ; """###?#""" | | ???????????? c h ;[[[[#"### | | ???????????? x h % | | ???????????? FFF % | | ??????????? FFF n | | ??????????? FFF ! !] % | | ?????????? p | | ?????????? | | ?????????? @ % #""""!!!!""### | | ???????????????"""""""""""""""" "##### "###?#""" | | ??????????????????"""""""""""""""#???######???#### | | ???????????????????""""""""""""""#???????????????? | | ????????????????????##############???????????????? | | ?????????????????????????????????????????????????? | | ?????????????????????????????????????????????????? | | ?????????????????????????????????????????????????? | | ??????????????????????????????????????????######## | | ?????????????????????????????????????????? | | ????????????????????????????????????????? | | ????????????????????????????????????????? "" | | ???????????????????????????????????????? """" | | ???????????????????????????????????????? """ " | | ???????????????????????????????????????? " | | ???????????????????????????????????????? """ " | | ???????????????????????????????????????? " | | ????????????????????????????????????????? " | | ?????????????????????????????????????????""" | | ??????????????????????????????????????????"" | | ?????????????????????????????????????????? | | ?????????????????????????????????????????? """ | | ??????????????????????????????????????????? """" | | ???????????????????????????????????????????" | | ????????????????????????????????????????????" " | +----------------------------------------------------+ Best States ------------- Heat Dissipation 163 Coolant Potential 100 Energy Generation 89 Energy Capacity 1350 Matter Stores 300 Matter Capacity 300 Sight Range 16 Terrain Scan Density 10 Jamming Range 22 Power Amplification 40 Base Temperature (-) 200 Armor Coverage 1600 Resistance: KI 20 Resistance: EM 90 Core Shielding 30 Evasion (%) 50 Targeting Accuracy 20 Core Analysis 8 Recoil Reduction 6 Offensive Hacking 14 Defensive Hacking 16 Relay Coupler Types 7 Relay Coupler Value 123 Authchip Count 1 Item Schematics ----------------- Mak. Transmission Jammer | -8/Materials | Scanalyzed Imp. Cooling System | -8/Materials | Scanalyzed Arm. Huge Wheel | -8/Materials | Scanalyzed Force Field | -6/Factory | Scanalyzed Quantum Capacitor | -6/Factory | Scanalyzed Exp. Optical Array | -3/Testing | Archive Mni. Smartbomb Launcher | -3/Testing | Archive Imp. Energy Well | -3/Testing | Archive Prc. Energy Filter | -3/Testing | Archive Exp. Thermal Shield | -3/Testing | Archive Helical Railgun | -3/Testing | Archive Exp. Focal Shield | -3/Testing | Archive Imp. Diametric Drive | -3/Testing | Archive Exp. Power Amplifier | -3/Testing | Archive Exp. Signal Interpreter | -3/Testing | Archive Stealth Drone Bay | -3/Testing | Reported Cld. Field Propulsion Drive | -3/Testing | Reported Enh. Biometal Leg | -3/Testing | Reported Centrium Greatsword | -3/Testing | Reported Cld. Proton Cannon | -3/Testing | Reported Exp. Terrain Scan Processor | -3/Testing | Reported Adv. Remote Datajack | -3/Testing | Reported Imp. Shock Absorption System | -3/Testing | Reported Imp. Matter Neutralizer | -3/Testing | Reported Cld. Antigrav System | -3/Testing | Reported Robot Schematics ------------------ M-13 Machinist | -10/Materials | Hacked R-06 Scavenger | -3/Testing | Archive E-15 Imp | -3/Testing | Archive Fabricated ------------ Adv. Plasma Cannon | x2 | -6/Factory | Preloaded G-50 Soldier | x3 | -6/Factory | Preloaded M-13 Machinist | x1 | -6/Factory M-13 Machinist | x1 | -5/Factory M-13 Machinist | x1 | -5/Factory | Authchip M-13 Machinist | x1 | -2/Protoforge | Authchip Repaired ---------- Imp. Ion Engine | 27% | -10/Materials Lgt. Treads | 57% | -9/Materials Lgt. Treads | 55% | -9/Materials Autogun | 23% | -9/Materials Plasma Cannon | 70% | -8/Materials Enh. Autogun | 31% | -8/Materials Enh. Autogun | 11% | -8/Materials Mak. Transmission Jammer | 52% | -7/Factory Missile Launcher | 64% | -7/Factory Hrd. Medium Armor Plating | 70% | -7/Factory Imp. Heavy Armor Plating | 66% | -6/Factory Adv. Cooling System | 50% | -6/Factory Quantum Capacitor | 50% | -5/Factory Hvy. Treads | 50% | -5/Factory Hvy. Treads | 57% | -5/Factory Matter Neutralizer | 74% | -5/Factory Antimatter Reactor | 64% | -5/Factory Quantum Capacitor | 62% | -5/Factory Matter Neutralizer | 50% | -5/Factory | Broken Imp. Force Field | 50% | -4/Factory Alien Tech Used ----------------- Phase Redirector Subatomic Replicator Achievements -------------- None Challenges ------------ None Game ------ Seed RelayReflectiveStrikerail Manual? 0 Play Time 06:14:56 Cumulative 676.5 hours Start 2025.05.05 @ 21:03:18 End 2025.05.07 @ 20:49:53 Sessions 17 Manual Loads 0 Difficulty Rogue Special Mode None Game No. 362 Rogue 362 Adventurer 0 Explorer 0 Win Type - Total 55 Types 37/4/5/2/1/1/3/1/1/0 Lore% 87 Gallery% 82 Achievement% 91 Wizard Run 0 Options --------- Layout 0 ASCII 0 Keyboard 1 Movement Numpad Keybinds 0 Fullscreen 2 Font 18/SmallcapsGlow Map View 76x50 Zoom Use 0% Tactical HUD 1 Map Filters NONE Filters NONE Steam 1 RUN: 64202c37-7d09-4e91-8a96-60207b7d04d5